{"text_format":"1","workbook":"xlsx","n_sheets":23,"sheets":["Cover Page","Facility Info","Operational Data","Operational Summary","Perf. Form 1","Energy Form 1","Permit Compliance","Improvements","Public Liasion","CO2 N2O","Residues","Water","Air (periodic)","Air (CEMS)","HCl","SO2","NOx","TOC","Particulates","CO 0.5 hourly","CO 95% 10 min","NH3","Template changes log"],"not_rendered":{"charts":8,"images":3,"macros":1,"external_links":0,"defined_names":26,"comments":0,"pivot_tables":0},"unopened":[],"bounds":{"document_bytes":16777216,"sheet_cells":100000,"rows_first":2000,"rows_last":500,"rows_between":2000,"halvings":0,"cell_chars":16384,"cell_head_chars":4096},"cells_cut":0,"cells_raw":0,"read":"whole","date_system":"1900"}

{"sheet":"Cover Page","index":0,"n_rows":53,"n_cols":11,"rows_kept":53,"cut":false,"hidden":false,"merged":[[13,10,18,12],[34,1,34,8],[0,3,5,6],[7,1,23,8],[28,1,28,8],[30,1,30,8],[32,1,32,8],[48,2,48,3],[48,6,48,8],[52,2,52,3],[36,1,36,8],[40,2,40,8],[42,2,42,4],[44,2,44,4],[46,2,46,3],[46,6,46,8]]}
[null,null,null,"Add company logo"]
[null,null,null,null,null,null,null,null,null,null,"Template version 25.1a (for incinerators) - 27/11/25"]
[]
[null,null,null,null,null,null,null,null,null,null,"Note that there is another version of this template available for co-incinerators"]
[]
[]
[]
[null,"Add photo"]
[]
[]
[]
[]
[null,null,null,null,null,null,null,null,null,null,"Notes:"]
[null,null,null,null,null,null,null,null,null,null,"This template may require adjustments by individual operators to meet specific reporting requirements as defined in the site Permit(s)"]
[]
[]
[]
[]
[]
[]
[]
[]
[]
[]
[]
[]
[]
[]
[null,"Annual Performance Report 2025"]
[]
[null,"Permit EPR/XP3436WB"]
[]
[null,"SUEZ R&R Wilton 11 EfW"]
[]
[null,"other name of facility (if applicable)"]
[]
[null,"SUEZ R&R"]
[]
[null,"Year:",2025]
[]
[null,"Address:","Wilton International, Middlesbrough, TS10 4RG"]
[]
[null,"Tel: "]
[]
[null,"Email: ","paula.bakes@suez.com"]
[]
[null,"Prepared by:","Paula Bakes",null,null,"Position:","EIR Manager"]
[]
[null,"Approved by:","Alex Biggins",null,null,"Position:","Plant Manager"]
[]
[null,"Version:",1]
[]
[null,"Issue Date:"]

{"sheet":"Facility Info","index":1,"n_rows":22,"n_cols":11,"rows_kept":22,"cut":false,"hidden":false,"merged":[[4,0,17,8],[21,0,53,8],[4,10,13,13],[21,10,30,13]]}
[{"$f":"+'Cover Page'!$B$29","v":"Annual Performance Report 2025"},null,null,null,{"$f":"+'Cover Page'!$B$33","v":"SUEZ R&R Wilton 11 EfW"}]
[]
["Plant Description and Design",null,null,null,null,null,null,null,null,null,"Notes:"]
[]
["The Energy from Waste facility operates 24/7 and has a design capacity of 49.9 MW. This requires a fuel input with a maximum continuous rating of around 29.2 tonnes per hour of MSW (from Merseyside County Council and various commercial customers) with an average net calorific value of 9.8 MJ/kg. This equates to 467,200 tonnes per annum at 8000 hours operation per annum through two combustion lines. \n\nThe plant has two Lines capable of processing up to 500,000 tonnes of waste per year. Incoming waste is delivered to site by rail and bulk vehicle trucks. Rail waste is checked at SUEZ’s Knowsley Transfer station, weighed and then loaded into ISO containers before being placed onto rail carriages and transported to the EFW facility. \n\nRoad waste is weighed via weighbridge at the Wilton site, and then tipped in the traditional way in the waste reception hall.",null,null,null,null,null,null,null,null,null,"Include summary of plant design, design capacity, no. of combustion lines, electrical and heat capacity and any other general information that describes the facility, its location and purpose "]
[]
[]
[]
[]
[]
[]
[]
[]
[]
[]
[]
[]
[]
[]
["Summary of Operational Processes and Procedures"]
[]
["WASTE RECEPTION\nThe plant is designed to accept contractual waste from Merseyside County Council via rail in bespoke ISO containers. Once at the EFW plant, the containers are lifted off the rail carriages by a gantry crane and placed onto mechanical ‘tilters’ The tilters operate hydraulically and move to the edge of the waste pit waste before being tilted to a 60 degree angle, allowing the waste to fall into the waste pit.\n\nWaste is also delivered by road via Bulk Transfer Vehicles in the standard operating way. \nAir needed for combustion is drawn into the furnace from above the waste reception hall so that odour and dust do not escape from the building.\n\nBUNKER\nMixing of waste occurs as the crane driver sorts the waste looking for unsuitable wastes to be removed, and to improve the homogeneity of the incinerator feedstock. \n\nCONTROL ROOM\nThere is one control room which centralises the operation of all equipment, including the grab crane used to mix and load waste into hoppers that feeds the furnace. All on-site functions are monitored automatically and manually. Its systems verify in real time that equipment is functioning properly, continuously monitor the combustion gas, and maximise the efficiency of the entire EfW process.\n\nGRATE AND BOILER\nWaste is lifted into the feed hoppers by the crane, from here waste falls into the furnace-charging chute and then onto the grate system for incineration. The thermal energy released from the burning is used to convert water to super-heated steam. At high pressure, this steam drives a turbine to generate electricity.\n\nENERGY GENERATION\nElectricity is generated at 11kv, with an electric capacity of 49.9 MWh.  The plant also has the capability of exporting steam at 3 different pressures, 58 bar(g), 17 bar(g) and 1.4 bar(g).  Steam is exported into the Wilton International site headers for use by a number of plants on site.  Where possible the steam is taken from turbine extract to ensure maximum efficiency.\n\nBOTTOM ASH\nAsh left on the grate after incineration is carried by conveyor to a recycling facility opposite the EFW plant. Once operational (February 2017) the bottom ash recycling facility will use a magnet above the conveyor to extract ferrous material for recycling. The remaining bottom ash is processed for recycling following classification of its hazardous properties. \n\nWATER-COOLED CONDENSERS\nAfter exiting the turbine, the steam is cooled and condensed back into water through water cooled condensers. This recovered water is treated and reused in the boilers to produce more steam. The water cooled condenser is capable of taking the full load from the boiler to ensure continuous operation of the EfW Plant.\n\nEMISSION CONTROL\nThe gases from the furnace are subject to a rigorous cleaning process involving selective non-catalytic reduction (SNCR), spray absorbers, and active carbon injection. This removes oxides of nitrogen, acidic gases, dioxins, and heavy metals from the gas stream.\n\nAIR POLLUTION CONTROL RESIDUE (APCR)\nThe cleaned gas is passed through fine-fabric bag filters to remove solid particles before it is emitted through the stack. The resultant APCR residue, or fly-ash, contains particles from the incineration process, we have a semi dry lime injection system. It is stored in a sealed silo until it removed from site for disposal.\n\nEMISSIONS MONITORING\nAs they pass through the stack, the residual flue gases from the process are continuously monitored before release. Each incinerator line has and independent stack and emissions monitoring system. This data is relayed automatically to the control room.",null,null,null,null,null,null,null,null,null,"Include summary of key processes and procedures such as (but not limited to); waste reception, control rooms, grate, bed and boiler, energy & heat  generation, cooling systems, residue management, emission controls, health and safety systems, maintenance"]

{"sheet":"Operational Data","index":2,"n_rows":65,"n_cols":10,"rows_kept":65,"cut":false,"hidden":false,"merged":[[4,9,23,9],[25,9,29,9],[53,0,57,0],[34,1,39,1],[3,1,3,2],[10,1,22,1],[26,1,28,1],[7,2,7,3]]}
[{"$f":"+'Cover Page'!$B$29","v":"Annual Performance Report 2025"},null,null,null,{"$f":"+'Cover Page'!$B$33","v":"SUEZ R&R Wilton 11 EfW"}]
[]
["Operational Data"]
["Plant Size:",500000,null,"tonnes pa",null,null,null,null,null,"Notes:"]
["Nominal net thermal input:",160,"MWth",null,null,null,null,null,null,"* Export capacity = nominal generation capacity at the generator terminals minus nominal parasitic load.\n\n** CHP and district heating plants only - put N/A if no heat export.\n\n***  Combusted tonnage = tonnes delivered in period + (tonnes in bunker at start of period – tonnes in bunker at end of period), or equivalent calculation depending on plant type\n\n**** Availability Definition: The availability of a line is to be calculated by the number of hours the line reported Continuously Monitored emission levels to the Regulator through the calendar year divided by the total number of hours in that year. \n\nThe overall plant availability is calculated as the mean of all lines in the plant. For clarity this includes periods of abnormal operation.  \n\nRationale: The primary function of an Energy from Waste facility is the disposal of waste. It follows therefore that the availability of a plant is determined by the period of time a facility spends undertaking this activity.\n\n*****NCV of waste: This should be completed for all plants which have a boiler. Calculate using total thermal power produced by boiler/boiler efficiency, or other suitable calculation. \n"]
["Nominal electrical export capacity*:",50,"MWe"]
["Nominal heat export capacity**:",null,"MWth"]
["No. of combustion lines:",2,"No. of steam turbines:",null,1]
[]
["Waste types received","Unit","Q1","Q2","Q3","Q4","Year Total","%"]
["Household / Local Authority","tonnes",3066,1374,5223,4365,{"$f":"SUM(C11:F11)","v":14028},{"$f":"IF(G11>0,G11/$G$21,\"-\")","v":3.1142052871338123E-2}]
["Commercial & Industrial ",null,7124,1451,6766,16860,{"$f":"SUM(C12:F12)","v":32201},7.1485974088249138E-2]
["Hazardous ",null," -   "," -   "," -   "," -   ",0,"-"]
["Clinical",null," -   "," -   "," -   "," -   ",0,"-"]
["Waste wood (biomass) ",null," -   "," -   "," -   "," -   ",0,"-"]
["Refuse Derived Fuel (incl. SRF) - H'hold/LA",null,107142,71199,113537,107650,{"$f":"SUM(C16:F16)","v":399528},0.8869491088950654]
["Refuse Derived Fuel (incl. SRF) - C&I",null,274,609,2319,1493,4695,1.0422864145347341E-2]
["Other [Please specify]",null," -   "," -   "," -   "," -   ",0,"-"]
["Other [Please specify]",null," -   "," -   "," -   "," -   ",0,"-"]
["Other [Please specify]",null," -   "," -   "," -   "," -   ",0,"-"]
["Total waste received",null,{"$f":"SUM(C11:C20)","v":117606},{"$f":"SUM(D11:D20)","v":74633},{"$f":"SUM(E11:E20)","v":127845},{"$f":"SUM(F11:F20)","v":130368},450452]
["Rejected Waste ",null,"-","-","-","-",{"$f":"SUM(C22:F22)","v":0},{"$f":"IF(G22>0,G22/$G$21,\"-\")","v":"-"}]
["Unprocessed waste transferred out",null,2,21,4,4,{"$f":"SUM(C23:F23)","v":31},{"$f":"IF(G23>0,G23/$G$21,\"-\")","v":6.8819763260014388E-5}]
["Total waste combusted ***",null,117604,74611,127841,130363,{"$f":"SUM(C24:F24)","v":450419}]
[]
["Energy Usage / Export","Unit","Q1","Q2","Q3","Q4","Year Total","KWh/te",null,"Password for protected cells\nA password has been set to prevent accidental  editing of cells with formulae. \nIf you still need to make an edit for some reason then the password = 1234"]
["Power generated at generator terminals","MWh",52773.39,31604.59,58611.17,62794.63,{"$f":"SUM(C27:F27)","v":205783.78},{"$f":"IF(G27>0,G27*1000/$G$24,\"-\")","v":456.87189039538742}]
["Power exported to grid and other external user(s)",null,42691.05,24311.18,46921.69,52383.4,{"$f":"SUM(C28:F28)","v":166307.32},{"$f":"IF(G28>0,G28*1000/$G$24,\"-\")","v":369.22802990104771}]
["Power imported",null,86.55,480.19,54.08,553.62,1174.44,{"$f":"IF(G29>0,G29*1000/$G$24,\"-\")","v":2.6074388513806035}]
["Indicative parasitic load","%",{"$f":"IF(C27>0,(C27-C28)/C27,\"-\")","v":0.19104969379454298},{"$f":"IF(D27>0,(D27-D28)/D27,\"-\")","v":0.23077059376501957},0.19944116454252656,0.16579809451859173,{"$f":"IF(G27>0,1-G28/(G27+G29),\"-\")","v":0.19642080416037588}]
["Thermal Energy Exported **",null,108329.7904,56711.579140000002,122442.4298,98229.764689999996,{"$f":"SUM(C31:F31)","v":385713.56402999995},{"$f":"IF(G31>0,G31*1000/$G$24,\"-\")","v":856.34390207784304}]
["R1 value (if applicable)","R1","-","-","-","-"]
[]
["Waste Disposal & Recovery","Unit","Q1","Q2","Q3","Q4","Year Total","% inputs"]
["APC Residues - produced","tonnes",2240.8200000000002,1745.42,3023.16,2688.38,{"$f":"SUM(C35:F35)","v":9697.7799999999988},{"$f":"IF(G35>0,G35/$G$24,\"-\")","v":2.1530574864737053E-2}]
["IBA - produced",null,27925.16,15918.89,27799.86,27144.400000000001,98788.31,{"$f":"IF(G36>0,G36/$G$24,\"-\")","v":0.2193253614967397}]
["Metals recycling",null,4974.78,3037.72,4845.8900000000003,4517.8999999999996,{"$f":"SUM(C37:F37)","v":17376.29},3.8578057319962084E-2]
["Ferrous",null,2864.28,1628.06,3013.43,2905.28,{"$f":"SUM(C38:F38)","v":10411.050000000001},2.3114144829592006E-2]
["Non-Ferrous",null,2110.5,1270.8599999999999,1829.16,1606.84,6817.36,1.5135595967310437E-2]
["Mixed Metal Skips out",null,0,139,3,6,148,3.2858294166098677E-4]
[]
["Raw Material Usage","Unit","Q1","Q2","Q3","Q4","Year Total","Qty./te"]
["Mains Water","ltrs",13050,13430,14080,14230,{"$f":"SUM(C43:F43)","v":54790},{"$f":"IF(G43>0,G43/$G$24,\"-\")","v":0.12164229306490179}]
["Other Water","ltrs",184320,169220,220650,210780,784970,{"$f":"IF(G44>0,G44/$G$24,\"-\")","v":1.7427550791596269}]
["Ammonia","kgs",527100,338800,620000,625200,2111100,4.6869692441926292]
["Urea","kgs","-","-","-","-",{"$f":"SUM(C46:F46)","v":0},"-"]
["Activated Carbon","kgs",28032,17140,32080,32460,109712,0.243577646591285]
["Lime / hydrated lime","kgs",999940,777120,1631380,1218280,4626720,10.272035593525139]
["Fuel oil","ltrs",1019,15125,726,1108,17978,3.9913946791765E-2]
["Gas","MWh",5954.92,5428.61,3761.45,2657.21,17802.189999999999,3.95236213392419E-2]
["Other",null,null,null,null,null,0,"-"]
[]
["Summary ","Line/Unit","Q1","Q2","Q3","Q4","Year Total",null,"Hrs in year "]
["Availability of waste combustion by line, hrs ****",1,1993,1377,2197,2088,{"$f":"SUM(C54:F54)","v":7655},{"$f":"+G54/$I$54","v":0.87385844748858443},8760,"Change this figure to 8784 in a leap year"]
[null,2,2037,1048,2163,2189,7437,{"$f":"+G55/$I$54","v":0.84897260273972608}]
[null,3,"-","-","-","-",0,0]
[null,4,"-","-","-","-",0,0]
[null,5,"-","-","-","-",{"$f":"SUM(C58:F58)","v":0},0]
["Hours of turbine operations, hrs",1,2136.9,1689.3,2205.14,2067.6,8098.9400000000005,0.92453652968036537]
["Hours of turbine operations, hrs",2,"-","-","-","-",0,0]
["Hours of heat / steam export**","hours",null,null,null,null,0,{"$f":"IF(B61>0,G60/I54,\"n/a\")","v":0}]
["Net calorific value of waste*****","MJ/kg",9.5,10,10.1,9.6999999999999993]
["Abnormal operation events","qty.",1,null,4,3,{"$f":"SUM(C63:F63)","v":8},{"$f":"IF(G63>0,\"yes\",\"no\")","v":"yes"}]
["Abnormal operation duration","hours",0.5,null,4,3,7.5,{"$f":"+(G64)/I54","v":8.5616438356164379E-4}]
["Permit Breaches","qty.",1,null,null,null,1,{"$f":"IF(G65>0,\"yes\",\"no\")","v":"yes"}]

{"sheet":"Operational Summary","index":3,"n_rows":41,"n_cols":11,"rows_kept":41,"cut":false,"hidden":false,"merged":[[44,2,44,8],[39,2,39,8],[40,2,40,8],[41,2,41,8],[42,2,42,8],[43,2,43,8],[29,10,42,13],[4,0,26,8],[4,10,13,13],[28,1,28,8],[29,2,29,8],[30,2,30,8],[31,2,31,8],[32,2,32,8],[33,2,33,8],[34,2,34,8],[35,2,35,8],[36,2,36,8],[37,2,37,8],[38,2,38,8]]}
[{"$f":"+'Cover Page'!$B$29","v":"Annual Performance Report 2025"},null,null,null,{"$f":"+'Cover Page'!$B$33","v":"SUEZ R&R Wilton 11 EfW"}]
[]
["Summary of Plant Operations and Maintenance during the reporting year",null,null,null,null,null,null,null,null,null,"Notes:"]
[]
["We have had a very good year for production in 2025 with minimal lost production compared to previous years.\n\nThe planned maintenance period during 2025; Major works included the replacement of the HTS superheater bundles on both line 1 and line 2 and side header replacements on line 2 furnace. Statutory inspections were completed as required and repair work to the FGT area carried out as required. Line 2 ID fan silencer replaced due to wear.\n\nThe planned outage dates for 2025 were:\nLine 1 – 1st May to 28th May\nLine 2 – 12th May to 5th July\n\n",null,null,null,null,null,null,null,null,null,"Include summary of key operational and/or maintenance activity undertaken in the year, such as any major component upgrades and/or replacements "]
[]
[]
[]
[]
[]
[]
[]
[]
[]
[]
[]
[]
[]
[]
[]
[]
[]
[]
[]
[]
[]
[]
[]
[{"$f":"+'Cover Page'!C39","v":2025},"Plant shut-downs"]
["Start date","End date","Reason for shut-down",null,null,null,null,null,null,null,"Provide a very brief reason for plant shut-down e.g. \"Shut-down prior to major outage\"; \"Emergency shut-down due to boiler tube leak\". All emergency shut-downs must be listed (irrespective of whether or not they were required to be reported to the EA). \n\nThere is no need to include periods of hot-standby here (e.g. to clear feed chute hopper blockages).\n\nFor clinical waste incinerators which require regular shut-downs for boiler cleaning, there is no need to record these here (only those prior to major outages, and emergency shut-downs). "]
["2025-05-01","2025-06-27","Annual maintenance shutdown for L1 and L2."]
["2025-11-03","2025-11-05"," Siftings blocked. Grate bars replaced."]
["2025-10-05","2025-10-08","Discharger blockage\nGrate bars lifted during inspection"]
["2025-07-17","2025-07-18","Replacement of ID Fan Motor, due to high vibrations"]
["2025-06-28","2025-07-01","Grate Bar Failure."]
["2025-05-30","2025-05-31","Shutdown extension"]
["2025-05-28","2025-05-30","Emergent Work due to extensive damage on Feeder Drop Wall"]
["2025-04-21","2025-04-23","Discharger Blockage"]
["2025-01-24","2025-01-28","Economiser tube leak"]
["2025-01-20","2025-01-22","Grate Bar Failure."]
["2025-01-17","2025-01-21","Both Discharger Arms found with sheared bolts and cracked welds."]

{"sheet":"Perf. Form 1","index":4,"n_rows":54,"n_cols":10,"rows_kept":54,"cut":false,"hidden":false,"merged":[[9,0,9,9],[10,0,10,1],[10,2,10,3],[10,4,10,5],[10,6,10,7],[10,8,10,9],[2,0,2,4],[2,6,2,8],[3,1,3,4],[5,3,5,4],[5,6,5,7],[8,0,8,1],[8,2,8,3],[8,4,8,5],[8,6,8,7],[8,8,8,9],[11,0,11,1],[11,2,11,3],[11,4,11,5],[11,6,11,7],[11,8,11,9],[12,0,12,1],[12,2,12,3],[12,4,12,5],[12,6,12,7],[12,8,12,9],[15,0,15,1],[15,2,15,3],[15,4,15,5],[15,6,15,7],[15,8,15,9],[16,0,16,9],[13,0,13,1],[13,2,13,3],[13,4,13,5],[13,6,13,7],[13,8,13,9],[14,0,14,3],[14,4,14,5],[14,6,14,7],[14,8,14,9],[17,0,17,1],[17,2,17,3],[17,4,17,5],[17,6,17,7],[17,8,17,9],[18,0,18,1],[18,2,18,3],[18,4,18,5],[18,6,18,7],[18,8,18,9],[19,0,19,1],[19,2,19,3],[19,4,19,5],[19,6,19,7],[19,8,19,9],[20,0,20,1],[20,2,20,3],[20,4,20,5],[20,6,20,7],[20,8,20,9],[21,0,21,1],[21,2,21,3],[21,4,21,5],[21,6,21,7],[21,8,21,9],[22,0,22,3],[22,4,22,5],[22,6,22,7],[22,8,22,9],[31,0,31,3],[31,7,31,8],[32,0,32,3],[32,4,32,5],[32,7,32,8],[33,0,33,3],[33,4,33,5],[33,7,33,8],[23,0,23,3],[23,4,23,5],[23,6,23,7],[23,8,23,9],[25,0,25,9],[26,0,28,9],[36,0,36,3],[36,4,36,5],[36,7,36,8],[37,0,37,3],[37,4,37,5],[37,7,37,8],[34,0,34,3],[34,4,34,5],[34,7,34,8],[35,0,35,3],[35,4,35,5],[35,7,35,8],[47,0,47,1],[49,0,49,9],[50,0,51,9],[38,0,38,9],[39,0,40,9],[43,0,43,1],[43,2,43,9],[45,0,45,1],[46,0,46,1]]}
[{"$f":"+'Cover Page'!C39","v":2025}," Annual Reporting Performance Form 1"]
[]
[{"$f":"+'Cover Page'!B31","v":"Permit EPR/XP3436WB"},null,null,null,null,"Operator: ",{"$f":"+'Cover Page'!B37","v":"SUEZ R&R"}]
["Facility:",{"$f":"+'Cover Page'!B33:I33","v":"SUEZ R&R Wilton 11 EfW"},null,null,null,"Form:","Performance 1"]
[]
["Reporting  Period from: ",null,null,"2025-01-01",null,"to:","2025-12-01"]
[]
[{"$f":"+A1","v":2025},"Annual Reporting of Waste Disposal and Recovery"]
["Waste Description",null,"Disposal Route(s)",null,"Disposal Tonnes",null,"Recovery Tonnes",null,"% / tonne of waste incinerated"]
["1) Hazardous Wastes"]
["APC Residues",null,null,null,{"$f":"+'Operational Data'!G35","v":9697.7799999999988},null,null,null,{"$f":"IF((E11+G11)>0,(E11+G11)/'Operational Data'!$G$24, \"-\")","v":2.1530574864737053E-2}]
["IBA",null,null,null,null,null,null,null,{"$f":"IF((E12+G12)>0,(E12+G12)/'Operational Data'!$G$24, \"-\")","v":"-"}]
[null,null,null,null,null,null,null,null,{"$f":"IF((E13+G13)>0,(E13+G13)/'Operational Data'!$G$24, \"-\")","v":"-"}]
[null,null,null,null,null,null,null,null,{"$f":"IF((E14+G14)>0,(E14+G14)/'Operational Data'!$G$24, \"-\")","v":"-"}]
["Total Hazardous Waste",null,null,null,{"$f":"SUM(E11:F14)","v":9697.7799999999988},null,{"$f":"SUM(G11:H14)","v":0},null,{"$f":"IF((E15+G15)>0,(E15+G15)/'Operational Data'!$G$24, \"-\")","v":2.1530574864737053E-2}]
[]
["2) Non-Hazardous Wastes"]
["IBA",null,null,null,{"$f":"+'Operational Data'!G36","v":98788.31},null,null,null,{"$f":"IF((E18+G18)>0,(E18+G18)/'Operational Data'!$G$24, \"-\")","v":0.2193253614967397}]
["Ferrous Metal",null,null,null,10406,null,null,null,{"$f":"IF((E19+G19)>0,(E19+G19)/'Operational Data'!$G$24, \"-\")","v":2.3102933046785328E-2}]
["Process Water",null,null,null,null,null,null,null,{"$f":"IF((E20+G20)>0,(E20+G20)/'Operational Data'!$G$24, \"-\")","v":"-"}]
[null,null,null,null,null,null,null,null,{"$f":"IF((E21+G21)>0,(E21+G21)/'Operational Data'!$G$24, \"-\")","v":"-"}]
[null,null,null,null,null,null,null,null,{"$f":"IF((E22+G22)>0,(E22+G22)/'Operational Data'!$G$24, \"-\")","v":"-"}]
["Total Non-Hazardous Waste",null,null,null,{"$f":"SUM(E18:F22)","v":109194.31},null,{"$f":"SUM(G18:H22)","v":0},null,{"$f":"IF((E23+G23)>0,(E23+G23)/'Operational Data'!$G$24, \"-\")","v":0.24242829454352502}]
["TOTAL WASTE",null,null,null,{"$f":"+E23+E15","v":118892.09},null,{"$f":"+G23+G15","v":0},null,{"$f":"IF((E24+G24)>0,(E24+G24)/'Operational Data'!$G$24, \"-\")","v":0.26395886940826208}]
[]
["Operator’s comments :"]
[]
[]
[]
[]
[{"$f":"+A1","v":2025},"Annual Reporting of Water and Other Raw Material Usage"]
["Raw Material",null,null,null,"Usage",null,"Unit","Specific Usage",null,"Unit"]
["Mains Water",null,null,null,{"$f":"+'Operational Data'!G43/1000","v":54.79},null,"m3",{"$f":"IF(E33>0,E33/'Operational Data'!$G$24,\"-\")","v":1.2164229306490179E-4},null,"m3/te"]
["Total Water",null,null,null,{"$f":"+('Operational Data'!G44+'Operational Data'!G43)/1000","v":839.76},null,"m3",{"$f":"IF(E34>0,E34/'Operational Data'!$G$24,\"-\")","v":1.8643973722245286E-3},null,"m3/te"]
["Urea / Ammonia",null,null,null,2111100,null,"kg",{"$f":"IF(E35>0,E35/'Operational Data'!$G$24,\"-\")","v":4.6869692441926292},null,"kg/te"]
["Activated Carbon",null,null,null,109712,null,"kg",{"$f":"IF(E36>0,E36/'Operational Data'!$G$24,\"-\")","v":0.243577646591285},null,"kg/te"]
["Lime / hydrated lime / Sodium Bicarb.",null,null,null,4626720,null,"kg",{"$f":"IF(E37>0,E37/'Operational Data'!$G$24,\"-\")","v":10.272035593525139},null,"kg/te"]
[]
["Operator’s comments :"]
[]
[]
[]
[{"$f":"+A31","v":2025},"Annual Reporting of other performance indicators "]
["Parameter",null,"Results by Line"]
[null,null,"A1","A2","A3","A4","A5",null,"Turbine 1","Turbine 2"]
["Operating hours for the year, hours",null,7655,7437,null,null,null,null,8098.9]
["Number of periods of abnormal operation, qty.",null,4,4]
["Cumulative hours of abnormal operation for this year, hours",null,3.5,3]
[]
["Operator’s comments :"]
[]
[]
[]
["Signed: ",null,null,null,null,null,"Date:"]

{"sheet":"Energy Form 1","index":5,"n_rows":29,"n_cols":7,"rows_kept":29,"cut":false,"hidden":false,"merged":[[2,6,2,8],[4,1,4,4],[6,3,6,4],[6,6,6,7],[8,0,8,2],[8,3,8,4],[8,6,8,8],[9,0,9,2],[9,3,9,4],[9,6,9,8],[10,0,10,2],[10,3,10,4],[10,6,10,8],[11,0,11,2],[11,3,11,4],[11,6,11,8],[12,0,12,2],[12,3,12,4],[12,6,12,8],[13,0,13,2],[13,3,13,4],[13,6,13,8],[14,0,14,2],[14,3,14,4],[14,6,14,8],[15,0,15,2],[15,3,15,4],[15,6,15,8],[17,0,17,8],[18,0,24,8]]}
[{"$f":"+'Cover Page'!C39","v":2025}," Annual Reporting of Energy Usage/Export"]
[]
[{"$f":"+'Cover Page'!B31","v":"Permit EPR/XP3436WB"},null,null,null,null,"Operator: ",{"$f":"+'Cover Page'!B37","v":"SUEZ R&R"}]
[]
["Facility:",{"$f":"+'Cover Page'!B33:I33","v":"SUEZ R&R Wilton 11 EfW"},null,null,null,"Form:","Energy 1"]
[]
["Reporting  Period from: ",null,null,{"$f":"+'Perf. Form 1'!D6:E6","v":"2025-01-01"},null,"to:",{"$f":"+'Perf. Form 1'!G6:H6","v":"2025-12-01"}]
[]
["Energy Source",null,null,"Energy Usage",null,"Unit","Specific Usage (KWh/tonne incinerated"]
["Electricity Produced",null,null,{"$f":"+'Operational Data'!G27","v":205783.78},null,"MWh",{"$f":"+'Operational Data'!H27","v":456.87189039538742}]
["Electricity Imported   ",null,null,{"$f":"+'Operational Data'!G29","v":1174.44},null,"MWh",{"$f":"+'Operational Data'!H29","v":2.6074388513806035}]
["Electricity Exported",null,null,{"$f":"+'Operational Data'!G28","v":166307.32},null,"MWh",{"$f":"+'Operational Data'!H28","v":369.22802990104771}]
["Gas Oil",null,null,{"$f":"+'Operational Data'!G50","v":17802.189999999999},null,"MWh",{"$f":"+'Operational Data'!H29","v":2.6074388513806035}]
["Steam/hot water exported",null,null,166.93100000000001,null,"GWh",{"$f":"+'Operational Data'!H31","v":856.34390207784304}]
[]
[]
[]
["Operator’s comments :"]
[]
[]
[]
[]
[]
[]
[]
[]
[]
[]
["Signed: ",null,null,null,null,null,"Date:"]

{"sheet":"Permit Compliance","index":6,"n_rows":30,"n_cols":12,"rows_kept":30,"cut":false,"hidden":false,"merged":[[35,4,35,8],[9,0,9,1],[9,2,9,4],[9,5,9,8],[10,0,10,1],[10,2,10,4],[10,5,10,8],[11,0,11,1],[11,2,11,4],[11,5,11,8],[12,0,12,1],[12,2,12,4],[12,5,12,8],[13,0,13,1],[13,2,13,4],[13,5,13,8],[7,0,7,1],[7,2,7,8],[8,0,8,1],[8,2,8,4],[8,5,8,8],[14,5,14,8],[15,0,15,1],[16,2,16,4],[16,5,16,8],[15,2,15,4],[15,5,15,8],[16,0,16,1],[34,1,34,3],[34,4,34,6],[34,7,34,9],[31,1,31,3],[31,4,31,6],[31,7,31,9],[32,1,32,3],[32,4,32,6],[32,7,32,9],[8,11,20,11],[28,0,28,10],[18,0,18,10],[33,1,33,3],[33,4,33,6],[33,7,33,9],[29,1,29,3],[29,4,29,6],[29,7,29,9],[30,1,30,3],[30,4,30,6],[30,7,30,9],[22,1,22,2],[23,1,23,2],[14,0,14,1],[14,2,14,4],[24,1,24,2],[25,1,25,2],[26,0,26,8],[19,7,19,8],[19,1,19,2],[19,3,19,5],[21,3,21,5],[22,3,22,5],[23,3,23,5],[24,3,24,5],[25,3,25,5],[21,1,21,2]]}
[{"$f":"+'Cover Page'!$B$29","v":"Annual Performance Report 2025"},null,null,null,{"$f":"+'Cover Page'!$B$33","v":"SUEZ R&R Wilton 11 EfW"}]
[]
["Summary of Permit Compliance"]
[]
["Compliance with permit limits for continuously monitored pollutants"]
[]
["The plant met its emission limits as shown in the table below:"]
["Substance",null,"Percentage time compliant during operationNote 1",null,null,null,null,null,null,null,null,"Notes:"]
[null,null,"Half-hourly limit",null,null,"Daily limit",null,null,null,null,null,"Note 1: Please report to 2 decimal places, i.e. xx.xx%\n\nNote 2: Please enter into this table any permit non-compliances that the EA has given a CCS score for. Please also enter any other non-compliances which you have notified to the EA (e.g. ELV exceedances) but which have not yet been assessed by the EA. There is no need to enter any notifications which were subsequently assessed by the EA not to be permit breaches.  \n\nNote 3: Please enter information here (rather than just referencing the notifications that were sent to the EA) including where relevant the incineration line reference, pollutant and value of the measured result for any ELV exceedances.   \n\n"]
["Particulates",null,1,null,null,1]
["Oxides of nitrogen",null,1,null,null,1]
["Sulphur dioxide",null,1,null,null,1]
["Carbon monoxide",null,"\n100% 95% of 10-min averages",null,null,1]
["Total organic carbon",null,1,null,null,1]
["Hydrogen chloride",null,1,null,null,1]
["Hydrogen fluoride",null,"xx.xx %",null,null,"xx.xx %"]
[null,null,"xx.xx %",null,null,"xx.xx %"]
[]
["Summary of non-compliances under the permit Note 2"]
["Date","Summary of non-compliance Note 3",null,"Reason ",null,null,"Measures taken to prevent reoccurrence","CCS score if applicable*"]
[null,null,null,null,null,null,null,"Impact","Root cause"]
["23/04/2025 - 11.04-15.07","Line 2 - Elevated mercury emissions during periodic stack testing.            Line 2 Mercury 0.1347mg-Nm3. Limit 0.02mg/Nm3",null,"This coincided with the startup of Line 2 after a period of downtime. Operational data was checked and the carbon abatement system was dosing as normal.",null,null,"A retest is scheduled for July 2025, and results will be shared. Results back within compliance",0.1]
[]
[]
[]
[]
["*If the Environment Agency (EA) has given a Compliance Classification Scheme (CCS) score due to a permit non-compliance it should be entered here (CCS4 = No impact; CCS3 = Minor impact; CCS2 = Significant impact; CCS1 = Major impact). If the EA has not yet assessed a non-compliance which you have notified to them, these columns should be left blank. Enter N/A if no score was given for the root cause.  "]
[]
["Summary of any complaints received and actions to taken to resolve them."]
["Date","Summary of complaint [including Line/Reference]",null,null,"Reason (including whether substantiated by the operator or the EA)",null,null,"Measures taken to prevent reoccurrence"]

{"sheet":"Improvements","index":7,"n_rows":39,"n_cols":5,"rows_kept":39,"cut":false,"hidden":false,"merged":[[37,0,37,8],[38,0,47,8],[4,0,4,8],[5,0,13,8],[15,0,15,8],[16,0,24,8],[26,0,26,8],[27,0,35,8]]}
[{"$f":"+'Cover Page'!$B$29","v":"Annual Performance Report 2025"},null,null,null,{"$f":"+'Cover Page'!$B$33","v":"SUEZ R&R Wilton 11 EfW"}]
[]
["Summary of Plant Improvements"]
[]
["Summary of any efficiency improvements that have been completed within the year."]
["Replacement of the HTS bundles on both Lines 1 and 2. Replacement of an ID fan silencer. Implementation of an OEE calculator tool to standardise steam set point across all shifts. MARTIN boiler optimisation focusing on boiler combustion. Improvement of material in bag filter hopper to better the resistance to corrosion."]
[]
[]
[]
[]
[]
[]
[]
[]
[]
["Summary of any permit improvement conditions that have been completed within the year and the resulting environmental benefits."]
["Table S1.3 Improvement Condition IC4 - Dust Management Plan"]
[]
[]
[]
[]
[]
[]
[]
[]
[]
["Summary of any changes to the plant or operating techniques which required a variation to the permit and a summary of the resulting environmental impact."]
["N/A"]
[]
[]
[]
[]
[]
[]
[]
[]
[]
["Summary of any other improvements made to the plant or planned to be made and a summary of the resulting environmental benefits."]
["Further plant optimisation planned. National explosion project kicked off aimed at reducing number to gas bottle explosions within the furnace with the goal of rediucing maintenance and downtime due to gas bottle explosions."]

{"sheet":"Public Liasion","index":8,"n_rows":45,"n_cols":5,"rows_kept":45,"cut":false,"hidden":false,"merged":[[32,0,32,1],[32,2,32,8],[5,0,5,1],[5,2,5,8],[6,0,7,1],[6,2,7,8],[10,0,11,1],[10,2,11,8],[26,0,27,1],[26,2,27,8],[28,0,29,1],[28,2,29,8],[31,0,31,8],[16,0,17,1],[16,2,17,8],[12,0,13,1],[33,0,34,1],[33,2,34,8],[35,0,36,1],[35,2,36,8],[37,0,38,1],[37,2,38,8],[39,0,40,1],[39,2,40,8],[41,0,42,1],[41,2,42,8],[44,0,44,8],[12,2,13,8],[8,0,9,1],[8,2,9,8],[14,0,15,1],[14,2,15,8],[20,0,21,1],[20,2,21,8],[18,0,19,1],[18,2,19,8],[24,0,25,1],[24,2,25,8],[22,0,23,1],[22,2,23,8]]}
[{"$f":"+'Cover Page'!$B$29","v":"Annual Performance Report 2025"},null,null,null,{"$f":"+'Cover Page'!$B$33","v":"SUEZ R&R Wilton 11 EfW"}]
[]
["Details of Public & Stakeholder Liaison"]
[]
["Summary of events held during the reporting year."]
["Date",null,"Description"]
["2025-02-27",null,"NEPIC (Northeast Processing Industry Cluster)"]
[]
["2025-04-07",null,"NETA"]
[]
["2025-04-25",null,"MWDA"]
[]
["2025-06-13",null,"MAPP (Landlord Inspection)"]
[]
["2025-07-23",null,"CHUBB Insurance Audit"]
[]
["2025-08-14",null,"Quadriga Audit"]
[]
["2025-10-02",null,"MWDA"]
[]
["2025-10-20",null,"EA Visit / Inspection"]
[]
["2025-10-30",null,"MWDA"]
[]
["2025-11-07",null,"EA Visit / Inspection"]
[]
["2025-11-24",null,"Business Audut (Mott McDonald)"]
[]
[]
[]
[]
["List of events planned for next year"]
["Date",null,"Description"]
[]
[]
[]
[]
[]
[]
[]
[]
[]
[]
[]
["If you wish to be involved in the public liaison programme, please contact _________________"]

{"sheet":"CO2 N2O","index":9,"n_rows":25,"n_cols":6,"rows_kept":25,"cut":false,"hidden":false,"merged":[[6,5,9,5],[22,2,22,3],[25,1,25,3],[16,2,16,3],[4,0,4,3],[9,0,9,3],[17,0,17,3],[13,0,13,3],[12,0,12,1],[8,2,8,3],[11,2,11,3],[19,2,19,3]]}
[{"$f":"+'Cover Page'!$B$29","v":"Annual Performance Report 2025"},null,{"$f":"+'Cover Page'!$B$33","v":"SUEZ R&R Wilton 11 EfW"}]
[]
["Carbon dioxide emissions and biogenic content of waste inputs",null,null,null,null,"Notes:"]
[]
["Carbon dioxide emissions (all types of plant)"]
[null,"Annual mass of carbon dioxide released","tonnes ",463.66]
[null,"Annual mass of carbon dioxide released per tonne of waste burned","t CO2 / t waste ",1.040787E-3,null,"Note 1: All permits require operators to continuously monitor CO2 to EN14181 and flow to BS EN 16911-2 (unless otherwise agreed in writing). Operators must therefore use the results from these instruments to calculate their annual CO2 emissions. Where an operator does not have a flow meter calibrated to BS EN 16911-2, the averaged flow measurement from that year's periodic monitoring can be used instead. If the plant does not have calibrated CO2 CEMS, a suitably justified emissions factor can be used. \n\n"]
[null,"Annual mass of carbon dioxide released per MWh of energy exported","t CO2 / MWh export ",1.607331E-3]
[null,"Description of how annual carbon dioxide mass emission has been calculated. \nSee Note 1","Data supplied directly from CEMS"]
["Nitrous oxide emissions (only plants which use ammonia or urea to abate NOx emissions)"]
[null,"Annual mass emissions of nitrous oxide","tonnes N2O",0.51]
[null,"Description of how annual nitrous oxide mass emission has been calculated\nSee Note 2","Data supplied directly from CEMS",null,null,"Note 2: All permits require operators to continuously monitor N2O to EN14181 and flow to BS EN 16911-2, unless otherwise agreed in writing. Operators must therefore use the results from these instruments to calculate their annual N2O emissions. Where an operator does not have a flow meter calibrated to BS EN 16911-2, the averaged flow measurement from periodic monitoring can be used instead. If the plant does not have calibrated N2O CEMS, data from periodic monitoring or a suitably justified emissions factor can be used instead."]
["Total annual carbon dioxide + nitrous oxide emissions. \nSee Note 3. ",null,"tonnes CO2e",598.80999999999995,null,"Note 3: Total annual carbon dioxide and nitrous oxide emissions reported as carbon dioxide equivalent where 1 tonne nitrous oxide is equivalent to 265 tonnes carbon dioxide."]
["Biogenic CO2 emissions (See Note 4)",null,null,null,null,"Note 4: Only plants combusting residual municipal waste, refuse derived fuel or solid recovered fuel need complete this section. "]
[null,"Percentage of total carbon dioxide emissions arising from biogenic waste","%",0.57120000000000004]
[null,"No. of measurements undertaken","Number",3]
[null,"Description of how percentage biogenic carbon dioxide emissions have been measured or calculated.\nSee Note 5","Assessed from results of C14 dating from samples collected through a Biogenic CO2 Analyser. Average of available results",null,null,"Note 5: The results from C14 sampling should be used if this is carried out at the plant (either via an installed sampler or from spot samples).  \nOtherwise, as an approximation (and in lieu of any more accurate metrics which may be developed in future), the measured or estimated biogenic fraction by net calorific value (see Note 6) can be assumed to be the same as the biogenic CO2 fraction of the total CO2 emissions from the plant. "]
["Biogenic fraction of waste feedstock (See Note 4)"]
[null,"Yearly average biogenic percentage of the waste by net calorific value (NCV)","%",0.51090000000000002]
[null,"Description of how biogenic percentage (by NCV) has been calculated or estimated. \nSee Note 6","Assessed from breakdown of waste composition \nfrom third-party reporting (M.E.L) and the \nrespective carbon content of each component.",null,null,"Note 6: If C14 sampling is carried out at the plant, the methodology set out in the embedded document entitled \"Renewable Energy Association Energy Content of Fuels - Description of Method\" embedded below can be used to calculate the biogenic percentage by net calorific value. Otherwise, data from waste sampling or BIOMA software can be used; or if none of these are available, an estimated figure with justification or a figure assumed on the basis of up-to-date industry data can be used. "]
[null,"Yearly average biogenic percentage of the waste by mass","%",0.52300000000000002]
[null,"If waste sampling undertaken, no. of samples used to ascertain average biogenic percentages above","Number",4]
[null,"Description of how biogenic percentage (by mass) has been calculated or estimated. \nSee Note 7","Assessed from breakdown of waste composition \nfrom third-party reporting (M.E.L) and the \nrespective carbon content of each component.",null,null,"Note 7: Where available, data from waste sampling should be used; otherwise, an estimated figure with justification can be used, or a figure assumed on the basis of up-to-date industry data. "]
[]
[null,"Comments:"]

{"sheet":"Residues","index":10,"n_rows":61,"n_cols":11,"rows_kept":61,"cut":false,"hidden":false,"merged":[[4,0,25,8],[4,10,13,13],[41,0,42,1],[41,2,42,6],[43,0,44,1],[43,2,44,6],[37,0,37,6],[38,0,38,1],[38,2,38,6],[30,0,31,6],[32,0,33,6],[34,0,35,6],[39,0,40,1],[39,2,40,6],[45,0,46,1],[45,2,46,6],[47,0,48,1],[47,2,48,6],[56,3,56,4],[52,2,53,2],[53,3,53,4],[53,5,53,6],[52,3,52,6],[51,0,51,6],[61,0,66,6],[57,3,57,4],[60,0,60,6],[52,0,53,1],[54,0,54,1],[55,0,55,1],[56,0,56,1],[57,0,57,1],[54,3,54,4],[55,3,55,4],[54,5,54,6],[55,5,55,6],[56,5,56,6],[57,5,57,6],[58,0,58,6]]}
[{"$f":"+'Cover Page'!$B$29","v":"Annual Performance Report 2025"},null,null,null,{"$f":"+'Cover Page'!$B$33","v":"SUEZ R&R Wilton 11 EfW"}]
[]
["Summary of Residue Handling for the reporting year"]
[]
["Residue handling system has performed well in 2025, planned repairs and maintenance carried out during the planned maintenance outage.                                                                                                                                                                                       The IBA removed from site is sent along a conveyored to the Blue Phoenix ash plant and where metals (ferrous and non-ferrous) are recovered.Remaining ash is sorted into aggragate sizes and recycled as building materials.   \nAPCR is removed from the silos and sent to Augean \n",null,null,null,null,null,null,null,null,null,"Include in here a summary of residue handling regimes and destinations "]
[]
[]
[]
[]
[]
[]
[]
[]
[]
[]
[]
[]
[]
[]
[]
[]
[]
[]
[]
[]
[]
[]
["Residue Quality Monitoring Requirements"]
[]
["Summary of monitoring undertaken and compliance"]
["Quarterly IBA & APCR samples taken on Lines 1&2"]
[]
["Fortnightly hazard assessment carried out on Lines 1&2"]
[]
[]
[]
[]
["Commentary on any specific events"]
["Date & Event",null,"Description"]
[]
[]
[]
[]
[]
[]
[]
[]
[]
[]
[]
[]
["Residue Quality Monitoring Results"]
["Parameter (unit) ",null,"Limit*","Normal Operation "]
[null,null,null,"Bottom ash  ",null,"APC Residues"]
["Loss on Ignition (average %)",null,"<5%"]
["Total Organic Carbon (average %)",null,"<3%",0.64875000000000005]
["No. of Assessments Undertaken",null,"---","1 sample per quarter",null,"1 sample per quarter"]
["No. of Hazardous Results",null,"---","Fortnightly hazard assessment, unless plant outage"]
["* The permit will specify a limit of either 5% loss on ignition or 3% total organic carbon. If both are measured anyway, please enter the results here, even where the limit does not apply. "]
[]
["Comments :"]

{"sheet":"Water","index":11,"n_rows":23,"n_cols":9,"rows_kept":23,"cut":false,"hidden":false,"merged":[[5,0,6,8],[7,0,8,8],[9,0,10,8],[12,0,12,8],[13,0,13,1],[13,2,13,8],[21,0,21,8],[22,0,22,2],[22,3,22,4],[14,0,15,1],[14,2,15,8],[16,0,17,1],[16,2,17,8],[18,0,19,1],[18,2,19,8],[23,0,23,2],[23,3,23,4],[24,0,24,2],[24,3,24,4],[25,0,25,2],[25,3,25,4],[29,0,29,2],[29,3,29,4],[26,0,26,2],[26,3,26,4],[27,0,27,2],[27,3,27,4],[28,0,28,2],[28,3,28,4]]}
[{"$f":"+'Cover Page'!$B$29","v":"Annual Performance Report 2025"},null,null,null,{"$f":"+'Cover Page'!$B$33","v":"SUEZ R&R Wilton 11 EfW"}]
[]
["Emissions to Water"]
[]
["Summary of monitoring undertaken and compliance"]
["None carried out "]
[]
[]
[]
[]
[]
[]
["Commentary on any specific events"]
["Date & Event",null,"Description"]
[]
[]
[]
[]
[]
[]
[]
["Emissions to Water / Sewer"]
["Parameter",null,null,"Monitoring Frequency",null,"Limit","Target","Max.","Average"]

{"sheet":"Air (periodic)","index":12,"n_rows":39,"n_cols":11,"rows_kept":39,"cut":false,"hidden":false,"merged":[[5,10,8,13],[9,10,11,13],[8,0,8,9],[5,0,6,9],[11,0,11,1],[12,0,12,1],[11,3,11,4],[12,3,12,4],[9,0,10,1],[9,5,9,9],[9,3,10,4],[9,2,10,2],[16,0,16,1],[17,0,17,1],[18,0,18,1],[13,0,13,1],[14,0,14,1],[15,0,15,1],[39,0,40,9],[25,0,25,1],[26,0,26,1],[22,0,22,1],[23,0,23,1],[37,0,37,1],[27,0,27,1],[28,0,28,1],[29,0,29,1],[30,0,30,1],[31,0,31,1],[32,0,32,1],[37,3,37,4],[29,3,29,4],[30,3,30,4],[36,3,36,4],[38,0,38,9],[19,0,19,1],[20,0,20,1],[21,0,21,1],[34,3,34,4],[35,3,35,4],[33,0,33,1],[34,0,34,1],[35,0,35,1],[36,0,36,1],[24,0,24,1],[32,3,32,4],[27,3,27,4],[33,3,33,4],[19,3,19,4],[20,3,20,4],[21,3,21,4],[22,3,22,4],[23,3,23,4],[24,3,24,4],[31,3,31,4],[25,3,25,4],[26,3,26,4],[28,3,28,4],[13,10,14,12],[15,10,16,10],[15,11,16,11],[15,12,16,12],[18,3,18,4],[13,3,13,4],[14,3,14,4],[15,3,15,4],[16,3,16,4],[17,3,17,4]]}
[{"$f":"+'Cover Page'!$B$29","v":"Annual Performance Report 2025"},null,null,null,{"$f":"+'Cover Page'!$B$33","v":"SUEZ R&R Wilton 11 EfW"}]
[]
["Emissions to Air (periodically monitored)"]
[]
["Summary of monitoring undertaken, standards used and compliance",null,null,null,null,null,null,null,null,null,"Notes:"]
["Periodic testing carried out biannually . There was 1 non-compliances identified during ths 1st visit. Mercury breach on Line 2",null,null,null,null,null,null,null,null,null,"Template may require adjustment for any bespoke monitoring requirements of permit - please also check that all default ELV values, reference periods and the stated oxygen reference value match those for your plant, and edit if necessary!"]
[]
[]
["Results of emissions to air that are periodically monitored - oxygen reference 11% "]
["Substance",null,"Ref. Period","Emission Limit Value",null,"Average",null,null,null,null,"User to add additional tables as necessary, depending on whether quarterly or bi-annual reporting is required for the compliance year"]
[null,null,null,null,null,"A1","A2","A3","A4","A5"]
["Hydrogen fluoride",null,"1 hr","1 mg/m3",null,3.2000000000000001E-2,1.6500000000000001E-2]
["Cd and Tl and their compounds",null,"0.5-8hrs","0.02 mg/m3",null,2.6450000000000002E-3,8.4500000000000005E-4]
["Hg and its compounds",null,"0.5-8hrs","0.02 mg/m3",null,3.65E-3,6.9449999999999998E-2]
["Sb, As, Pb, Cr, Co, Cu, Mn, Ni, V and their compounds",null,"0.5-8hrs","0.3 mg/m3",null,7.4450000000000002E-2,7.3349999999999999E-2]
["Dioxins & Furans (I-TEQ)",null,"6-8hrs","0.06 ng/m3",null,3.7000000000000002E-3,1.865E-2]
["PCBs (WHO-TEQ Humans / Mammals)",null,"6-8hrs","None set ng/m3",null,8.0000000000000004E-4,1.4825000000000001E-3]
["PCBs (WHO-TEQ Fish)",null,"6-8hrs","None set ng/m3",null,5.5000000000000002E-5,6.7999999999999999E-5]
["PCBs (WHO-TEQ Birds)",null,"6-8hrs","None set ng/m3",null,2.7499999999999998E-3,2.6719999999999999E-3]
["Dioxins & Furans (WHO-TEQ Humans / Mammals)",null,"6-8hrs","None set ng/m3",null,3.15E-3,1.8599999999999998E-2]
["Dioxins & Furans (WHO-TEQ Fish)",null,"6-8hrs","None set ng/m3",null,3.2000000000000002E-3,2.0400000000000001E-2]
["Dioxins & Furans (WHO-TEQ Birds)",null,"6-8hrs","None set ng/m3",null,1.37E-2,3.1350000000000003E-2]
["Anthanthrene",null,"6-8hrs","None set µg/m3",null,1.4499999999999999E-3,1.3500000000000001E-3]
["Benzo(a)anthracene",null,"6-8hrs","None set µg/m3",null,1.4499999999999999E-3,1.15E-3]
["Benzo(a)pyrene",null,"6-8hrs","None set µg/m3",null,1.4499999999999999E-3,1.15E-3]
["Benzo(b)fluoranthene",null,"6-8hrs","None set µg/m3",null,1.4499999999999999E-3,1.15E-3]
["Benzo(b)naptho(2,1-d) thiophene",null,"6-8hrs","None set µg/m3",null,1.4499999999999999E-3,1.15E-3]
["Benzo(c)phenanthrene",null,"6-8hrs","None set µg/m3",null,1.4499999999999999E-3,1.15E-3]
["Benzo(ghi)perylene",null,"6-8hrs","None set µg/m3",null,1.4499999999999999E-3,1.15E-3]
["Benzo(k)fluoranthene",null,"6-8hrs","None set µg/m3",null,1.4499999999999999E-3,1.15E-3]
["Cholanthrene",null,"6-8hrs","None set µg/m3",null,1.4499999999999999E-3,1.15E-3]
["Chrysene",null,"6-8hrs","None set µg/m3",null,1.4499999999999999E-3,1.15E-3]
["Cyclopenta(cd)pyrene",null,"6-8hrs","None set µg/m3",null,1.4499999999999999E-3,2.65E-3]
["Dibenzo(ai)pyrene",null,"6-8hrs","None set µg/m3",null,1.4499999999999999E-3,1.15E-3]
["Dibenzo(ah)anthracene",null,"6-8hrs","None set µg/m3",null,1.4499999999999999E-3,1.15E-3]
["Fluoranthene",null,"6-8hrs","None set µg/m3",null,3.0450000000000001E-2,4.2500000000000003E-2]
["Indeno(123-cd) pyrene",null,"6-8hrs","None set µg/m3",null,1.4499999999999999E-3,1.15E-3]
["Naphthalene",null,"6-8hrs","None set µg/m3",null,0.21260000000000001,3.91]
["Comments :"]

{"sheet":"Air (CEMS)","index":13,"n_rows":29,"n_cols":14,"rows_kept":29,"cut":false,"hidden":false,"merged":[[14,13,15,13],[14,14,15,14],[14,15,15,15],[12,13,13,15],[27,0,27,12],[29,0,30,12],[13,0,14,0],[5,0,6,12],[7,0,8,12],[10,0,10,12],[11,0,12,0],[11,2,12,2],[11,1,12,1],[11,3,11,4],[11,5,11,6],[11,7,11,8],[11,9,11,10],[11,11,11,12]]}
[{"$f":"+'Cover Page'!$B$29","v":"Annual Performance Report 2025"},null,null,null,null,null,null,null,{"$f":"+'Cover Page'!$B$33","v":"SUEZ R&R Wilton 11 EfW"}]
[]
["Emissions to Air (continuously monitored)"]
[null,null,null,null,null,null,null,null,null,null,null,null,null,"Notes:"]
["Summary of monitoring undertaken, standards used and compliance",null,null,null,null,null,null,null,null,null,null,null,null,"Template may require adjustment for any bespoke monitoring requirements of permit"]
["The CEMS set up comprises a multigas analyser, FID analyser and oxygen probe for extractive sampling where flue gases are drawn continuously via a heated line to the analysers in the CEMS room for each incineration line. In situ sampling i.e. where the probes are installed directly into the flue gas flow in the stack is for the dust probes only. The set up for the duty analysers is mirrored by the standby analysers. The standby analysers can be switched between incineration Lines  as required. Continuous monitoring is provided by the CEMS as required by the permit. The CEMS are installed in accordance with EN14181 and relevant Environment Agency guidance.",null,null,null,null,null,null,null,null,null,null,null,null,"Please check that all default ELV values match those for your plant and edit if necessary!"]
[null,null,null,null,null,null,null,null,null,null,null,null,null,"Report to 1 decimal place"]
[]
[]
[]
["Results of emissions to air that are continuously monitored (maximum and average values for each line) - oxygen reference 11%"]
["Substance","Reference Period","Emission Limit Value","A1",null,"A2",null,"A3",null,"A4",null,"A5"]
[null,null,null,"Max.","Avg.","Max.","Avg.","Max.","Avg.","Max.","Avg.","Max.","Avg."]
["Oxides of nitrogen","Daily mean","180 mg/m3 ",{"$f":"NOx!O19","v":182},{"$f":"NOx!N19","v":156.72727272727272},{"$f":"NOx!O34","v":176},{"$f":"NOx!N34","v":159.36363636363637},{"$f":"NOx!$O$49","v":0},{"$f":"NOx!$N$49","v":{"$error":"#DIV/0!"}},{"$f":"NOx!$O$64","v":0},{"$f":"NOx!$N$64","v":{"$error":"#DIV/0!"}},{"$f":"NOx!$O$79","v":0},{"$f":" NOx!$N$79","v":{"$error":"#DIV/0!"}}]
[null,"½ hourly mean","400 mg/m3 ",{"$f":"NOx!M19","v":330},{"$f":"NOx!L19","v":156.72727272727272},{"$f":"NOx!M34","v":387},{"$f":"NOx!L34","v":159.36363636363637},{"$f":" NOx!$M$49","v":0},{"$f":"NOx!$L$49","v":{"$error":"#DIV/0!"}},{"$f":"NOx!$M$64","v":0},{"$f":"NOx!$L$64","v":{"$error":"#DIV/0!"}},{"$f":"NOx!$M$79","v":0},{"$f":"NOx!$L$79","v":{"$error":"#DIV/0!"}}]
["Particulates","Daily mean","5 mg/m3",{"$f":"Particulates!O19","v":1},{"$f":"Particulates!N19","v":0.84545454545454557},{"$f":"Particulates!O34","v":1},{"$f":"Particulates!N34","v":0.32727272727272727},{"$f":"Particulates!$O$49","v":0},{"$f":"Particulates!$N$49","v":{"$error":"#DIV/0!"}},{"$f":"Particulates!$O$64","v":0},{"$f":"Particulates!$N$64","v":{"$error":"#DIV/0!"}},{"$f":" Particulates!$O$79","v":0},{"$f":" Particulates!$N$79","v":{"$error":"#DIV/0!"}}]
[null,"½ hourly mean","30 mg/m3 ",{"$f":"Particulates!M19","v":3.3},{"$f":"Particulates!L19","v":0.84545454545454557},{"$f":"Particulates!M34","v":9},{"$f":"Particulates!L34","v":0.32727272727272727},{"$f":"Particulates!$M$49","v":0},{"$f":"Particulates!$L$49","v":{"$error":"#DIV/0!"}},{"$f":"Particulates!$M$64","v":0},{"$f":"Particulates!$L$64","v":{"$error":"#DIV/0!"}},{"$f":"Particulates!$M$79","v":0},{"$f":"Particulates!$L$79","v":{"$error":"#DIV/0!"}}]
["Total Organic Carbon ","Daily mean","10 mg/m3 ",{"$f":"TOC!O19","v":4.4000000000000004},{"$f":"TOC!N19","v":0.6},{"$f":"TOC!O34","v":1},{"$f":"TOC!N34","v":0.70909090909090899},{"$f":"TOC!$O$49","v":0},{"$f":" TOC!$N$49","v":{"$error":"#DIV/0!"}},{"$f":" TOC!$O$64","v":0},{"$f":" TOC!$N$64","v":{"$error":"#DIV/0!"}},{"$f":"TOC!$O$79","v":0},{"$f":"TOC!$N$79","v":{"$error":"#DIV/0!"}}]
[null,"½ hourly mean","20 mg/m3 ",{"$f":"TOC!M19","v":11},{"$f":"TOC!L19","v":0.75454545454545441},{"$f":"TOC!M34","v":13.7},{"$f":"TOC!L34","v":0.70909090909090899},{"$f":"TOC!$M$49","v":0},{"$f":"TOC!$L$49","v":{"$error":"#DIV/0!"}},{"$f":"TOC!$M$64","v":0},{"$f":" TOC!$L$64","v":{"$error":"#DIV/0!"}},{"$f":"TOC!$M$79","v":0},{"$f":" TOC!$L$79","v":{"$error":"#DIV/0!"}}]
["Hydrogen chloride ","Daily mean","8 mg/m3 ",{"$f":"HCl!O19","v":7},{"$f":"HCl!N19","v":3.5454545454545454},{"$f":"HCl!O34","v":8},{"$f":"HCl!N34","v":5},{"$f":"HCl!$O$49","v":0},{"$f":"HCl!$N$49","v":{"$error":"#DIV/0!"}},{"$f":"HCl!$O$64","v":0},{"$f":"HCl!$N$64","v":{"$error":"#DIV/0!"}},{"$f":"HCl!$O$79","v":0},{"$f":"HCl!$N$79","v":{"$error":"#DIV/0!"}}]
[null,"½ hourly mean","60 mg/m3 ",{"$f":"HCl!M19","v":19},{"$f":"HCl!L19","v":3.5454545454545454},{"$f":"HCl!M34","v":22},{"$f":"HCl!L34","v":5},{"$f":"HCl!$M$49","v":0},{"$f":" HCl!$L$49","v":{"$error":"#DIV/0!"}},{"$f":"HCl!$M$64","v":0},{"$f":"HCl!$L$64","v":{"$error":"#DIV/0!"}},{"$f":"HCl!$M$79","v":0},{"$f":"HCl!$L$79","v":{"$error":"#DIV/0!"}}]
["Sulphur dioxide","Daily mean","40 mg/m3 ",{"$f":"'SO2'!O19","v":37},{"$f":"'SO2'!N19","v":25.636363636363637},{"$f":"'SO2'!O34","v":40},{"$f":"'SO2'!N34","v":30},{"$f":" 'SO2'!$O$49","v":0},{"$f":"'SO2'!$N$49","v":{"$error":"#DIV/0!"}},{"$f":"'SO2'!$O$64","v":0},{"$f":"'SO2'!$N$64","v":{"$error":"#DIV/0!"}},{"$f":" 'SO2'!$O$79","v":0},{"$f":"'SO2'!$N$79","v":{"$error":"#DIV/0!"}}]
[null,"½ hourly mean","200 mg/m3 ",{"$f":"'SO2'!M19","v":87},{"$f":"'SO2'!L19","v":25.636363636363637},{"$f":"'SO2'!M34","v":125},{"$f":"'SO2'!L34","v":30},{"$f":"'SO2'!$M$49","v":0},{"$f":"'SO2'!$L$49","v":{"$error":"#DIV/0!"}},{"$f":"'SO2'!$M$64","v":0},{"$f":"'SO2'!$L$64","v":{"$error":"#DIV/0!"}},{"$f":"'SO2'!$M$79","v":0},{"$f":"'SO2'!$L$79","v":{"$error":"#DIV/0!"}}]
["Carbon monoxide ","Daily mean","50 mg/m3 ",{"$f":"'CO 95% 10 min'!Q22","v":14},{"$f":"'CO 95% 10 min'!P22","v":6.4545454545454541},{"$f":"'CO 95% 10 min'!Q37","v":13},{"$f":"'CO 95% 10 min'!P37","v":4.3636363636363633},{"$f":"'CO 95% 10 min'!Q52","v":0},{"$f":"'CO 95% 10 min'!P52","v":{"$error":"#DIV/0!"}},{"$f":"'CO 95% 10 min'!Q67","v":0},{"$f":"'CO 95% 10 min'!P67","v":{"$error":"#DIV/0!"}},{"$f":"'CO 95% 10 min'!Q82","v":0},{"$f":"'CO 95% 10 min'!P82","v":{"$error":"#DIV/0!"}}]
[null,"½ hourly mean *","100 mg/m3 *"]
[null,"95%ile 10-min avg *","150 mg/m3 *",{"$f":"'CO 95% 10 min'!M22","v":17.636363636363637},null,{"$f":"'CO 95% 10 min'!M37","v":15.090909090909092},null,{"$f":"'CO 95% 10 min'!M52","v":{"$error":"#DIV/0!"}},null,{"$f":"'CO 95% 10 min'!M67","v":{"$error":"#DIV/0!"}},null,{"$f":"'CO 95% 10 min'!M82","v":{"$error":"#DIV/0!"}}]
[" Ammonia","Daily mean","15 mg/m3 ",{"$f":"'NH3'!O19","v":4},{"$f":"'NH3'!N19","v":1.9090909090909092},{"$f":"'NH3'!O34","v":5},{"$f":"'SO2'!N34","v":30},{"$f":"'NH3'!$O$49","v":0},{"$f":"'NH3'!$N$49","v":{"$error":"#DIV/0!"}},{"$f":"'NH3'!$O$64","v":0},{"$f":"'NH3'!$N$64","v":{"$error":"#DIV/0!"}},{"$f":"'NH3'!$O$79","v":0},{"$f":"'NH3'!$N$79","v":{"$error":"#DIV/0!"}}]
["* = delete as appropriate, depending on whether your plant has half-hourly or 10-min CO ELVs\n"]
["Comments :"]

{"sheet":"HCl","index":14,"n_rows":79,"n_cols":17,"rows_kept":79,"cut":false,"hidden":false,"merged":[[12,16,15,18],[51,9,63,9],[66,9,78,9],[4,9,4,14],[4,1,4,3],[4,4,4,6],[48,0,51,6],[47,0,47,6],[6,9,18,9],[21,9,33,9],[36,9,48,9],[3,16,7,18],[9,16,11,18],[18,4,18,6]]}
[{"$f":"+'Cover Page'!$B$29","v":"Annual Performance Report 2025"},null,null,null,{"$f":"+'Cover Page'!$B$33","v":"SUEZ R&R Wilton 11 EfW"}]
[]
["Monitoring of Hydrogen Chloride emissions",null,null,"Whole Installation",null,null,"See  Notes in Cell Q3",null,null,{"$f":"+A3","v":"Monitoring of Hydrogen Chloride emissions"},null,null,null,"Per Combustion Line",null,null,"Notes:"]
[null,null,null,null,null,null,null,null,null,null,null,null,null,null,null,null,"User to add logic to complete Whole installation, Table A5:G18. From the data in Per Combustion Line, Table J6:O79, subject to No. of lines installed"]
[{"$f":"+'Cover Page'!C39","v":2025},"1/2 Hourly Reference Periods",null,null,"Daily Reference Periods"]
["mg/Nm3","1/2 hourly HCl ELV","Monthly mean of half-hourly averages","Highest half- hourly average","Daily HCl ELV","Monthly mean of  daily averages","Highest daily average",null,null,{"$f":"+A5","v":2025},"mg/Nm3","Monthly mean of half-hourly averages","Highest half- hourly average","Monthly mean of  daily averages","Highest daily average"]
["Jan",60,{"$f":"AVERAGE(L7,L22,L37,L52,L67)","v":5.5},{"$f":"MAX(M7,M22,M37,M52,M67)","v":19},8,{"$f":"AVERAGE(N7,N22,N37,N52,N67)","v":5.5},{"$f":"MAX(O7,O22,O37,O52,O67)","v":7},null,null,"A1","Jan",5,19,5,7]
["Feb",60,{"$f":"AVERAGE(L8,L23,L38,L53,L68)","v":4.5},{"$f":"MAX(M8,M23,M38,M53,M68)","v":21},8,{"$f":"AVERAGE(N8,N23,N38,N53,N68)","v":4.5},{"$f":"MAX(O8,O23,O38,O53,O68)","v":7},null,null,null,"Feb",3,9,3,4]
["Mar",60,6,14,8,6,8,null,null,null,"Mar",6,11,6,7,null,"Whole Installation table A5:G18:"]
["Apr",60,6,17,8,6,7,null,null,null,"Apr",6,14,6,7,null,"Mean: for 1/2 hourly and daily periods calculate mean of values across all operational combustion lines for the month"]
["May",60,3.5,22,8,3.5,7,null,null,null,"May",1,2,1,0]
["Jun",60,2,5,8,2,2,null,null,null,"Jun",2,4,2,2]
["Jul",60,2,5,8,2,3,null,null,null,"Jul",2,3,2,2,null,"Maximum: for 1/2 hourly and daily periods use the highest value across all operational combustion lines for the month"]
["Aug",60,3,9,8,3,7,null,null,null,"Aug",3,7,3,5]
["Sep",60,6,11,8,6,7,null,null,null,"Sep",5,11,5,7]
["Oct",60,4,16,8,4,7,null,null,null,"Oct",3,10,3,7]
["Nov",60,4.5,11,8,4.5,7,null,null,null,"Nov",3,8,3,6]
["Dec",60,{"$error":"#DIV/0!"},0,8,{"$error":"#DIV/0!"},0,null,null,null,"Dec"]
[null,null,null,null,null,null,null,null,null,null,"Annual",{"$f":"AVERAGE(L7:L18)","v":3.5454545454545454},{"$f":"MAX(M7:M18)","v":19},{"$f":"AVERAGE(N7:N18)","v":3.5454545454545454},{"$f":"MAX(O7:O18)","v":7}]
[]
[null,null,null,null,null,null,null,null,null,{"$f":"+A5","v":2025},"mg/Nm3","Monthly mean of half-hourly averages","Highest half- hourly average","Monthly mean of  daily averages","Highest daily average"]
[null,null,null,null,null,null,null,null,null,"A2","Jan",6,18,6,7]
[null,null,null,null,null,null,null,null,null,null,"Feb",6,21,6,7]
[null,null,null,null,null,null,null,null,null,null,"Mar",6,14,6,8]
[null,null,null,null,null,null,null,null,null,null,"Apr",6,17,6,7]
[null,null,null,null,null,null,null,null,null,null,"May",6,22,6,7]
[null,null,null,null,null,null,null,null,null,null,"Jun",2,5,2,2]
[null,null,null,null,null,null,null,null,null,null,"Jul",2,5,2,3]
[null,null,null,null,null,null,null,null,null,null,"Aug",3,9,3,7]
[null,null,null,null,null,null,null,null,null,null,"Sep",7,11,7,7]
[null,null,null,null,null,null,null,null,null,null,"Oct",5,16,5,7]
[null,null,null,null,null,null,null,null,null,null,"Nov",6,11,6,7]
[null,null,null,null,null,null,null,null,null,null,"Dec"]
[null,null,null,null,null,null,null,null,null,null,"Annual",{"$f":"AVERAGE(L22:L33)","v":5},{"$f":"MAX(M22:M33)","v":22},{"$f":"AVERAGE(N22:N33)","v":5},{"$f":"MAX(O22:O33)","v":8}]
[]
[null,null,null,null,null,null,null,null,null,{"$f":"+A5","v":2025},"mg/Nm3","Monthly mean of half-hourly averages","Highest half- hourly average","Monthly mean of  daily averages","Highest daily average"]
[null,null,null,null,null,null,null,null,null,"A3","Jan"]
[null,null,null,null,null,null,null,null,null,null,"Feb"]
[null,null,null,null,null,null,null,null,null,null,"Mar"]
[null,null,null,null,null,null,null,null,null,null,"Apr"]
[null,null,null,null,null,null,null,null,null,null,"May"]
[null,null,null,null,null,null,null,null,null,null,"Jun"]
[null,null,null,null,null,null,null,null,null,null,"Jul"]
[null,null,null,null,null,null,null,null,null,null,"Aug"]
[null,null,null,null,null,null,null,null,null,null,"Sep"]
[null,null,null,null,null,null,null,null,null,null,"Oct"]
[null,null,null,null,null,null,null,null,null,null,"Nov"]
["Comments :",null,null,null,null,null,null,null,null,null,"Dec"]
[null,null,null,null,null,null,null,null,null,null,"Annual",{"$f":"AVERAGE(L37:L48)","v":{"$error":"#DIV/0!"}},{"$f":"MAX(M37:M48)","v":0},{"$f":"AVERAGE(N37:N48)","v":{"$error":"#DIV/0!"}},{"$f":"MAX(O37:O48)","v":0}]
[]
[null,null,null,null,null,null,null,null,null,{"$f":"+A5","v":2025},"mg/Nm3","Monthly mean of half-hourly averages","Highest half- hourly average","Monthly mean of  daily averages","Highest daily average"]
[null,null,null,null,null,null,null,null,null,"A4","Jan"]
[null,null,null,null,null,null,null,null,null,null,"Feb"]
[null,null,null,null,null,null,null,null,null,null,"Mar"]
[null,null,null,null,null,null,null,null,null,null,"Apr"]
[null,null,null,null,null,null,null,null,null,null,"May"]
[null,null,null,null,null,null,null,null,null,null,"Jun"]
[null,null,null,null,null,null,null,null,null,null,"Jul"]
[null,null,null,null,null,null,null,null,null,null,"Aug"]
[null,null,null,null,null,null,null,null,null,null,"Sep"]
[null,null,null,null,null,null,null,null,null,null,"Oct"]
[null,null,null,null,null,null,null,null,null,null,"Nov"]
[null,null,null,null,null,null,null,null,null,null,"Dec"]
[null,null,null,null,null,null,null,null,null,null,"Annual",{"$f":"AVERAGE(L52:L63)","v":{"$error":"#DIV/0!"}},{"$f":"MAX(M52:M63)","v":0},{"$f":"AVERAGE(N52:N63)","v":{"$error":"#DIV/0!"}},{"$f":"MAX(O52:O63)","v":0}]
[]
[null,null,null,null,null,null,null,null,null,{"$f":"+A5","v":2025},"mg/Nm3","Monthly mean of half-hourly averages","Highest half- hourly average","Monthly mean of  daily averages","Highest daily average"]
[null,null,null,null,null,null,null,null,null,"A5","Jan"]
[null,null,null,null,null,null,null,null,null,null,"Feb"]
[null,null,null,null,null,null,null,null,null,null,"Mar"]
[null,null,null,null,null,null,null,null,null,null,"Apr"]
[null,null,null,null,null,null,null,null,null,null,"May"]
[null,null,null,null,null,null,null,null,null,null,"Jun"]
[null,null,null,null,null,null,null,null,null,null,"Jul"]
[null,null,null,null,null,null,null,null,null,null,"Aug"]
[null,null,null,null,null,null,null,null,null,null,"Sep"]
[null,null,null,null,null,null,null,null,null,null,"Oct"]
[null,null,null,null,null,null,null,null,null,null,"Nov"]
[null,null,null,null,null,null,null,null,null,null,"Dec"]
[null,null,null,null,null,null,null,null,null,null,"Annual",{"$f":"AVERAGE(L67:L78)","v":{"$error":"#DIV/0!"}},{"$f":"MAX(M67:M78)","v":0},{"$f":"AVERAGE(N67:N78)","v":{"$error":"#DIV/0!"}},{"$f":"MAX(O67:O78)","v":0}]

{"sheet":"SO2","index":15,"n_rows":79,"n_cols":17,"rows_kept":79,"cut":false,"hidden":false,"merged":[[3,16,7,18],[9,16,11,18],[12,16,15,18],[66,9,78,9],[4,1,4,3],[4,4,4,6],[4,9,4,14],[6,9,18,9],[21,9,33,9],[36,9,48,9],[47,0,47,6],[48,0,51,6],[51,9,63,9],[18,4,18,6]]}
[{"$f":"+'Cover Page'!$B$29","v":"Annual Performance Report 2025"},null,null,null,{"$f":"+'Cover Page'!$B$33","v":"SUEZ R&R Wilton 11 EfW"}]
[]
["Monitoring of Sulphur dioxide emissions",null,null,"Whole Installation",null,null,"See  Notes in Cell Q3",null,null,{"$f":"+A3","v":"Monitoring of Sulphur dioxide emissions"},null,null,null,"Per Combustion Line",null,null,"Notes:"]
[null,null,null,null,null,null,null,null,null,null,null,null,null,null,null,null,"User to add logic to complete Whole installation, Table A5:G18. From the data in Per Combustion Line, Table J6:O79, subject to No. of lines installed"]
[{"$f":"+'Cover Page'!C39","v":2025},"1/2 Hourly Reference Periods",null,null,"Daily Reference Periods"]
["mg/Nm3","1/2 hourly SO2 ELV","Monthly mean of half-hourly averages","Highest half- hourly average","Daily SO2 ELV","Monthly mean of  daily averages","Highest daily average",null,null,{"$f":"+A5","v":2025},"mg/Nm3","Monthly mean of half-hourly averages","Highest half- hourly average","Monthly mean of  daily averages","Highest daily average"]
["Jan",200,{"$f":"AVERAGE(L7,L22,L37,L52,L67)","v":20},{"$f":"MAX(M7,M22,M37,M52,M67)","v":64},40,{"$f":"AVERAGE(N7,N22,N37,N52,N67)","v":20},{"$f":"MAX(O7,O22,O37,O52,O67)","v":37},null,null,"A1","Jan",17,42,17,34]
["Feb",200,{"$f":"AVERAGE(L8,L23,L38,L53,L68)","v":26},{"$f":"MAX(M8,M23,M38,M53,M68)","v":80},40,{"$f":"AVERAGE(N8,N23,N38,N53,N68)","v":26},{"$f":"MAX(O8,O23,O38,O53,O68)","v":36},null,null,null,"Feb",27,80,27,36]
["Mar",200,29.5,115,40,29.5,39,null,null,null,"Mar",25,48,25,35,null,"Whole Installation table A5:G18:"]
["Apr",200,25,105,40,25,39,null,null,null,"Apr",24,79,24,34,null,"Mean: for 1/2 hourly and daily periods calculate mean of values across all operational combustion lines for the month"]
["May",200,17.5,118,40,17.5,37,null,null,null,"May",7,15,7,0]
["Jun",200,33.5,67,40,33.5,37,null,null,null,"Jun",34,61,34,37]
["Jul",200,36,125,40,36,38,null,null,null,"Jul",36,67,36,37,null,"Maximum: for 1/2 hourly and daily periods use the highest value across all operational combustion lines for the month"]
["Aug",200,33,101,40,33,40,null,null,null,"Aug",31,87,31,37]
["Sep",200,27,70,40,27,35,null,null,null,"Sep",23,48,23,30]
["Oct",200,29.5,75,40,29.5,39,null,null,null,"Oct",30,62,30,36]
["Nov",200,29,113,40,29,37,null,null,null,"Nov",28,45,28,35]
["Dec",200,{"$error":"#DIV/0!"},0,40,{"$error":"#DIV/0!"},0,null,null,null,"Dec"]
[null,null,null,null,null,null,null,null,null,null,"Annual",{"$f":"AVERAGE(L7:L18)","v":25.636363636363637},{"$f":"MAX(M7:M18)","v":87},{"$f":"AVERAGE(N7:N18)","v":25.636363636363637},{"$f":"MAX(O7:O18)","v":37}]
[]
[null,null,null,null,null,null,null,null,null,{"$f":"+A5","v":2025},"mg/Nm3","Monthly mean of half-hourly averages","Highest half- hourly average","Monthly mean of  daily averages","Highest daily average"]
[null,null,null,null,null,null,null,null,null,"A2","Jan",23,64,23,37]
[null,null,null,null,null,null,null,null,null,null,"Feb",25,77,25,35]
[null,null,null,null,null,null,null,null,null,null,"Mar",34,115,34,39]
[null,null,null,null,null,null,null,null,null,null,"Apr",26,105,26,39]
[null,null,null,null,null,null,null,null,null,null,"May",28,118,28,37]
[null,null,null,null,null,null,null,null,null,null,"Jun",33,67,33,36]
[null,null,null,null,null,null,null,null,null,null,"Jul",36,125,36,38]
[null,null,null,null,null,null,null,null,null,null,"Aug",35,101,35,40]
[null,null,null,null,null,null,null,null,null,null,"Sep",31,70,31,35]
[null,null,null,null,null,null,null,null,null,null,"Oct",29,75,29,39]
[null,null,null,null,null,null,null,null,null,null,"Nov",30,113,30,37]
[null,null,null,null,null,null,null,null,null,null,"Dec"]
[null,null,null,null,null,null,null,null,null,null,"Annual",{"$f":"AVERAGE(L22:L33)","v":30},{"$f":"MAX(M22:M33)","v":125},{"$f":"AVERAGE(N22:N33)","v":30},{"$f":"MAX(O22:O33)","v":40}]
[]
[null,null,null,null,null,null,null,null,null,{"$f":"+A5","v":2025},"mg/Nm3","Monthly mean of half-hourly averages","Highest half- hourly average","Monthly mean of  daily averages","Highest daily average"]
[null,null,null,null,null,null,null,null,null,"A3","Jan"]
[null,null,null,null,null,null,null,null,null,null,"Feb"]
[null,null,null,null,null,null,null,null,null,null,"Mar"]
[null,null,null,null,null,null,null,null,null,null,"Apr"]
[null,null,null,null,null,null,null,null,null,null,"May"]
[null,null,null,null,null,null,null,null,null,null,"Jun"]
[null,null,null,null,null,null,null,null,null,null,"Jul"]
[null,null,null,null,null,null,null,null,null,null,"Aug"]
[null,null,null,null,null,null,null,null,null,null,"Sep"]
[null,null,null,null,null,null,null,null,null,null,"Oct"]
[null,null,null,null,null,null,null,null,null,null,"Nov"]
["Comments :",null,null,null,null,null,null,null,null,null,"Dec"]
[null,null,null,null,null,null,null,null,null,null,"Annual",{"$f":"AVERAGE(L37:L48)","v":{"$error":"#DIV/0!"}},{"$f":"MAX(M37:M48)","v":0},{"$f":"AVERAGE(N37:N48)","v":{"$error":"#DIV/0!"}},{"$f":"MAX(O37:O48)","v":0}]
[]
[null,null,null,null,null,null,null,null,null,{"$f":"+A5","v":2025},"mg/Nm3","Monthly mean of half-hourly averages","Highest half- hourly average","Monthly mean of  daily averages","Highest daily average"]
[null,null,null,null,null,null,null,null,null,"A4","Jan"]
[null,null,null,null,null,null,null,null,null,null,"Feb"]
[null,null,null,null,null,null,null,null,null,null,"Mar"]
[null,null,null,null,null,null,null,null,null,null,"Apr"]
[null,null,null,null,null,null,null,null,null,null,"May"]
[null,null,null,null,null,null,null,null,null,null,"Jun"]
[null,null,null,null,null,null,null,null,null,null,"Jul"]
[null,null,null,null,null,null,null,null,null,null,"Aug"]
[null,null,null,null,null,null,null,null,null,null,"Sep"]
[null,null,null,null,null,null,null,null,null,null,"Oct"]
[null,null,null,null,null,null,null,null,null,null,"Nov"]
[null,null,null,null,null,null,null,null,null,null,"Dec"]
[null,null,null,null,null,null,null,null,null,null,"Annual",{"$f":"AVERAGE(L52:L63)","v":{"$error":"#DIV/0!"}},{"$f":"MAX(M52:M63)","v":0},{"$f":"AVERAGE(N52:N63)","v":{"$error":"#DIV/0!"}},{"$f":"MAX(O52:O63)","v":0}]
[]
[null,null,null,null,null,null,null,null,null,{"$f":"+A5","v":2025},"mg/Nm3","Monthly mean of half-hourly averages","Highest half- hourly average","Monthly mean of  daily averages","Highest daily average"]
[null,null,null,null,null,null,null,null,null,"A5","Jan"]
[null,null,null,null,null,null,null,null,null,null,"Feb"]
[null,null,null,null,null,null,null,null,null,null,"Mar"]
[null,null,null,null,null,null,null,null,null,null,"Apr"]
[null,null,null,null,null,null,null,null,null,null,"May"]
[null,null,null,null,null,null,null,null,null,null,"Jun"]
[null,null,null,null,null,null,null,null,null,null,"Jul"]
[null,null,null,null,null,null,null,null,null,null,"Aug"]
[null,null,null,null,null,null,null,null,null,null,"Sep"]
[null,null,null,null,null,null,null,null,null,null,"Oct"]
[null,null,null,null,null,null,null,null,null,null,"Nov"]
[null,null,null,null,null,null,null,null,null,null,"Dec"]
[null,null,null,null,null,null,null,null,null,null,"Annual",{"$f":"AVERAGE(L67:L78)","v":{"$error":"#DIV/0!"}},{"$f":"MAX(M67:M78)","v":0},{"$f":"AVERAGE(N67:N78)","v":{"$error":"#DIV/0!"}},{"$f":"MAX(O67:O78)","v":0}]

{"sheet":"NOx","index":16,"n_rows":79,"n_cols":17,"rows_kept":79,"cut":false,"hidden":false,"merged":[[3,16,7,18],[9,16,11,18],[12,16,15,18],[66,9,78,9],[4,1,4,3],[4,4,4,6],[4,9,4,14],[6,9,18,9],[21,9,33,9],[36,9,48,9],[47,0,47,6],[48,0,51,6],[51,9,63,9],[18,4,18,6]]}
[{"$f":"+'Cover Page'!$B$29","v":"Annual Performance Report 2025"},null,null,null,{"$f":"+'Cover Page'!$B$33","v":"SUEZ R&R Wilton 11 EfW"}]
[]
["Monitoring of Oxides of Nitrogen emissions",null,null,"Whole Installation",null,null,"See  Notes in Cell Q3",null,null,{"$f":"+A3","v":"Monitoring of Oxides of Nitrogen emissions"},null,null,null,"Per Combustion Line",null,null,"Notes:"]
[null,null,null,null,null,null,null,null,null,null,null,null,null,null,null,null,"User to add logic to complete Whole installation, Table A5:G18. From the data in Per Combustion Line, Table J6:O79, subject to No. of lines installed"]
[{"$f":"+'Cover Page'!C39","v":2025},"1/2 Hourly Reference Periods",null,null,"Daily Reference Periods"]
["mg/Nm3","1/2 hourly NOx ELV","Monthly mean of half-hourly averages","Highest half- hourly average","Daily NOx ELV","Monthly mean of  daily averages","Highest daily average",null,null,{"$f":"+A5","v":2025},"mg/Nm3","Monthly mean of half-hourly averages","Highest half- hourly average","Monthly mean of  daily averages","Highest daily average"]
["Jan",400,{"$f":"AVERAGE(L7,L22,L37,L52,L67)","v":151.5},{"$f":"MAX(M7,M22,M37,M52,M67)","v":283},180,{"$f":"AVERAGE(N7,N22,N37,N52,N67)","v":151.5},{"$f":"MAX(O7,O22,O37,O52,O67)","v":182},null,null,"A1","Jan",159,283,159,182]
["Feb",400,{"$f":"AVERAGE(L8,L23,L38,L53,L68)","v":155.5},{"$f":"MAX(M8,M23,M38,M53,M68)","v":294},180,{"$f":"AVERAGE(N8,N23,N38,N53,N68)","v":155.5},{"$f":"MAX(O8,O23,O38,O53,O68)","v":171},null,null,null,"Feb",156,294,156,165]
["Mar",400,155.5,281,180,155.5,175,null,null,null,"Mar",154,281,154,175,null,"Whole Installation table A5:G18:"]
["Apr",400,161,387,180,161,176,null,null,null,"Apr",158,330,158,173,null,"Mean: for 1/2 hourly and daily periods calculate mean of values across all operational combustion lines for the month"]
["May",400,144.5,308,180,144.5,170,null,null,null,"May",142,155,142,0]
["Jun",400,173.5,353,180,173.5,174,null,null,null,"Jun",163,239,163,174]
["Jul",400,160.5,320,180,160.5,175,null,null,null,"Jul",165,223,165,175,null,"Maximum: for 1/2 hourly and daily periods use the highest value across all operational combustion lines for the month"]
["Aug",400,159,203,180,159,174,null,null,null,"Aug",158,203,158,172]
["Sep",400,157,326,180,157,175,null,null,null,"Sep",151,233,151,175]
["Oct",400,163.5,254,180,163.5,175,null,null,null,"Oct",163,254,163,175]
["Nov",400,157,205,180,157,173,null,null,null,"Nov",155,201,155,173]
["Dec",400,{"$error":"#DIV/0!"},0,180,{"$error":"#DIV/0!"},0,null,null,null,"Dec"]
[null,null,null,null,null,null,null,null,null,null,"Annual",{"$f":"AVERAGE(L7:L18)","v":156.72727272727272},{"$f":"MAX(M7:M18)","v":330},{"$f":"AVERAGE(N7:N18)","v":156.72727272727272},{"$f":"MAX(O7:O18)","v":182}]
[]
[null,null,null,null,null,null,null,null,null,{"$f":"+A5","v":2025},"mg/Nm3","Monthly mean of half-hourly averages","Highest half- hourly average","Monthly mean of  daily averages","Highest daily average"]
[null,null,null,null,null,null,null,null,null,"A2","Jan",144,230,144,174]
[null,null,null,null,null,null,null,null,null,null,"Feb",155,200,155,171]
[null,null,null,null,null,null,null,null,null,null,"Mar",157,204,157,174]
[null,null,null,null,null,null,null,null,null,null,"Apr",164,387,164,176]
[null,null,null,null,null,null,null,null,null,null,"May",147,308,147,170]
[null,null,null,null,null,null,null,null,null,null,"Jun",184,353,184,150]
[null,null,null,null,null,null,null,null,null,null,"Jul",156,320,156,173]
[null,null,null,null,null,null,null,null,null,null,"Aug",160,194,160,174]
[null,null,null,null,null,null,null,null,null,null,"Sep",163,326,163,174]
[null,null,null,null,null,null,null,null,null,null,"Oct",164,238,164,175]
[null,null,null,null,null,null,null,null,null,null,"Nov",159,205,159,167]
[null,null,null,null,null,null,null,null,null,null,"Dec"]
[null,null,null,null,null,null,null,null,null,null,"Annual",{"$f":"AVERAGE(L22:L33)","v":159.36363636363637},{"$f":"MAX(M22:M33)","v":387},{"$f":"AVERAGE(N22:N33)","v":159.36363636363637},{"$f":"MAX(O22:O33)","v":176}]
[]
[null,null,null,null,null,null,null,null,null,{"$f":"+A5","v":2025},"mg/Nm3","Monthly mean of half-hourly averages","Highest half- hourly average","Monthly mean of  daily averages","Highest daily average"]
[null,null,null,null,null,null,null,null,null,"A3","Jan"]
[null,null,null,null,null,null,null,null,null,null,"Feb"]
[null,null,null,null,null,null,null,null,null,null,"Mar"]
[null,null,null,null,null,null,null,null,null,null,"Apr"]
[null,null,null,null,null,null,null,null,null,null,"May"]
[null,null,null,null,null,null,null,null,null,null,"Jun"]
[null,null,null,null,null,null,null,null,null,null,"Jul"]
[null,null,null,null,null,null,null,null,null,null,"Aug"]
[null,null,null,null,null,null,null,null,null,null,"Sep"]
[null,null,null,null,null,null,null,null,null,null,"Oct"]
[null,null,null,null,null,null,null,null,null,null,"Nov"]
["Comments :",null,null,null,null,null,null,null,null,null,"Dec"]
[null,null,null,null,null,null,null,null,null,null,"Annual",{"$f":"AVERAGE(L37:L48)","v":{"$error":"#DIV/0!"}},{"$f":"MAX(M37:M48)","v":0},{"$f":"AVERAGE(N37:N48)","v":{"$error":"#DIV/0!"}},{"$f":"MAX(O37:O48)","v":0}]
[]
[null,null,null,null,null,null,null,null,null,{"$f":"+A5","v":2025},"mg/Nm3","Monthly mean of half-hourly averages","Highest half- hourly average","Monthly mean of  daily averages","Highest daily average"]
[null,null,null,null,null,null,null,null,null,"A4","Jan"]
[null,null,null,null,null,null,null,null,null,null,"Feb"]
[null,null,null,null,null,null,null,null,null,null,"Mar"]
[null,null,null,null,null,null,null,null,null,null,"Apr"]
[null,null,null,null,null,null,null,null,null,null,"May"]
[null,null,null,null,null,null,null,null,null,null,"Jun"]
[null,null,null,null,null,null,null,null,null,null,"Jul"]
[null,null,null,null,null,null,null,null,null,null,"Aug"]
[null,null,null,null,null,null,null,null,null,null,"Sep"]
[null,null,null,null,null,null,null,null,null,null,"Oct"]
[null,null,null,null,null,null,null,null,null,null,"Nov"]
[null,null,null,null,null,null,null,null,null,null,"Dec"]
[null,null,null,null,null,null,null,null,null,null,"Annual",{"$f":"AVERAGE(L52:L63)","v":{"$error":"#DIV/0!"}},{"$f":"MAX(M52:M63)","v":0},{"$f":"AVERAGE(N52:N63)","v":{"$error":"#DIV/0!"}},{"$f":"MAX(O52:O63)","v":0}]
[]
[null,null,null,null,null,null,null,null,null,{"$f":"+A5","v":2025},"mg/Nm3","Monthly mean of half-hourly averages","Highest half- hourly average","Monthly mean of  daily averages","Highest daily average"]
[null,null,null,null,null,null,null,null,null,"A5","Jan"]
[null,null,null,null,null,null,null,null,null,null,"Feb"]
[null,null,null,null,null,null,null,null,null,null,"Mar"]
[null,null,null,null,null,null,null,null,null,null,"Apr"]
[null,null,null,null,null,null,null,null,null,null,"May"]
[null,null,null,null,null,null,null,null,null,null,"Jun"]
[null,null,null,null,null,null,null,null,null,null,"Jul"]
[null,null,null,null,null,null,null,null,null,null,"Aug"]
[null,null,null,null,null,null,null,null,null,null,"Sep"]
[null,null,null,null,null,null,null,null,null,null,"Oct"]
[null,null,null,null,null,null,null,null,null,null,"Nov"]
[null,null,null,null,null,null,null,null,null,null,"Dec"]
[null,null,null,null,null,null,null,null,null,null,"Annual",{"$f":"AVERAGE(L67:L78)","v":{"$error":"#DIV/0!"}},{"$f":"MAX(M67:M78)","v":0},{"$f":"AVERAGE(N67:N78)","v":{"$error":"#DIV/0!"}},{"$f":"MAX(O67:O78)","v":0}]

{"sheet":"TOC","index":17,"n_rows":79,"n_cols":17,"rows_kept":79,"cut":false,"hidden":false,"merged":[[3,16,7,18],[9,16,11,18],[12,16,15,18],[66,9,78,9],[4,1,4,3],[4,4,4,6],[4,9,4,14],[6,9,18,9],[21,9,33,9],[36,9,48,9],[47,0,47,6],[48,0,51,6],[51,9,63,9]]}
[{"$f":"+'Cover Page'!$B$29","v":"Annual Performance Report 2025"},null,null,null,{"$f":"+'Cover Page'!$B$33","v":"SUEZ R&R Wilton 11 EfW"}]
[]
["Monitoring of Total organic carbon emissions",null,null,"Whole Installation",null,null,"See  Notes in Cell Q3",null,null,{"$f":"+A3","v":"Monitoring of Total organic carbon emissions"},null,null,null,"Per Combustion Line",null,null,"Notes:"]
[null,null,null,null,null,null,null,null,null,null,null,null,null,null,null,null,"User to add logic to complete Whole installation, Table A5:G18. From the data in Per Combustion Line, Table J6:O79, subject to No. of lines installed"]
[{"$f":"+'Cover Page'!C39","v":2025},"1/2 Hourly Reference Periods",null,null,"Daily Reference Periods"]
["mg/Nm3","1/2 hourly TOC ELV","Monthly mean of half-hourly averages","Highest half- hourly average","Daily TOC ELV","Monthly mean of  daily averages","Highest daily average",null,null,{"$f":"+A5","v":2025},"mg/Nm3","Monthly mean of half-hourly averages","Highest half- hourly average","Monthly mean of  daily averages","Highest daily average"]
["Jan",20,{"$f":"AVERAGE(L7,L22,L37,L52,L67)","v":0.5},{"$f":"MAX(M7,M22,M37,M52,M67)","v":3},10,{"$f":"AVERAGE(N7,N22,N37,N52,N67)","v":0.5},{"$f":"MAX(O7,O22,O37,O52,O67)","v":1},null,null,"A1","Jan",0,1,0,1]
["Feb",20,{"$f":"AVERAGE(L8,L23,L38,L53,L68)","v":0.3},{"$f":"MAX(M8,M23,M38,M53,M68)","v":2.4},10,{"$f":"AVERAGE(N8,N23,N38,N53,N68)","v":0.3},{"$f":"MAX(O8,O23,O38,O53,O68)","v":0.7},null,null,null,"Feb",0.1,2.2999999999999998,0.1,0.1]
["Mar",20,0.3,13.7,10,0.3,1,null,null,null,"Mar",0,1.5,0,0.1,null,"Whole Installation table A5:G18:"]
["Apr",20,0.39999999999999997,5.3,10,0.39999999999999997,1,null,null,null,"Apr",0.1,3.4,0.1,1,null,"Mean: for 1/2 hourly and daily periods calculate mean of values across all operational combustion lines for the month"]
["May",20,0.8,2,10,0.95000000000000007,0.9,null,null,null,"May",0.8,1.1000000000000001,1.1000000000000001,0]
["Jun",20,0.44999999999999996,4.8,10,0.44999999999999996,0.8,null,null,null,"Jun",0.3,4.8,0.3,0.8]
["Jul",20,2,2,10,0.5,1,null,null,null,"Jul",3,0,0,1,null,"Maximum: for 1/2 hourly and daily periods use the highest value across all operational combustion lines for the month"]
["Aug",20,0.5,11,10,1,1,null,null,null,"Aug",0,11,1,0]
["Sep",20,0.95,6.1,10,0.95,4.4000000000000004,null,null,null,"Sep",1.4,6.1,1.4,4.4000000000000004]
["Oct",20,0.8,6,10,0.8,3.9,null,null,null,"Oct",1,6,1,3.9]
["Nov",20,1.05,6.5,10,1.05,3.7,null,null,null,"Nov",1.6,6.5,1.6,3.7]
["Dec",20,{"$error":"#DIV/0!"},0,10,{"$error":"#DIV/0!"},0,null,null,null,"Dec"]
[null,null,null,null,null,null,null,null,null,null,"Annual",{"$f":"AVERAGE(L7:L18)","v":0.75454545454545441},{"$f":"MAX(M7:M18)","v":11},{"$f":"AVERAGE(N7:N18)","v":0.6},{"$f":"MAX(O7:O18)","v":4.4000000000000004}]
[]
[null,null,null,null,null,null,null,null,null,{"$f":"+A5","v":2025},"mg/Nm3","Monthly mean of half-hourly averages","Highest half- hourly average","Monthly mean of  daily averages","Highest daily average"]
[null,null,null,null,null,null,null,null,null,"A2","Jan",1,3,1,1]
[null,null,null,null,null,null,null,null,null,null,"Feb",0.5,2.4,0.5,0.7]
[null,null,null,null,null,null,null,null,null,null,"Mar",0.6,13.7,0.6,1]
[null,null,null,null,null,null,null,null,null,null,"Apr",0.7,5.3,0.7,1]
[null,null,null,null,null,null,null,null,null,null,"May",0.8,2,0.8,0.9]
[null,null,null,null,null,null,null,null,null,null,"Jun",0.6,1.5,0.6,0.6]
[null,null,null,null,null,null,null,null,null,null,"Jul",1,2,1,1]
[null,null,null,null,null,null,null,null,null,null,"Aug",1,5,1,1]
[null,null,null,null,null,null,null,null,null,null,"Sep",0.5,3.5,0.5,0.6]
[null,null,null,null,null,null,null,null,null,null,"Oct",0.6,3.8,0.6,0.7]
[null,null,null,null,null,null,null,null,null,null,"Nov",0.5,1.7,0.5,0.6]
[null,null,null,null,null,null,null,null,null,null,"Dec"]
[null,null,null,null,null,null,null,null,null,null,"Annual",{"$f":"AVERAGE(L22:L33)","v":0.70909090909090899},{"$f":"MAX(M22:M33)","v":13.7},{"$f":"AVERAGE(N22:N33)","v":0.70909090909090899},{"$f":"MAX(O22:O33)","v":1}]
[]
[null,null,null,null,null,null,null,null,null,{"$f":"+A5","v":2025},"mg/Nm3","Monthly mean of half-hourly averages","Highest half- hourly average","Monthly mean of  daily averages","Highest daily average"]
[null,null,null,null,null,null,null,null,null,"A3","Jan"]
[null,null,null,null,null,null,null,null,null,null,"Feb"]
[null,null,null,null,null,null,null,null,null,null,"Mar"]
[null,null,null,null,null,null,null,null,null,null,"Apr"]
[null,null,null,null,null,null,null,null,null,null,"May"]
[null,null,null,null,null,null,null,null,null,null,"Jun"]
[null,null,null,null,null,null,null,null,null,null,"Jul"]
[null,null,null,null,null,null,null,null,null,null,"Aug"]
[null,null,null,null,null,null,null,null,null,null,"Sep"]
[null,null,null,null,null,null,null,null,null,null,"Oct"]
[null,null,null,null,null,null,null,null,null,null,"Nov"]
["Comments :",null,null,null,null,null,null,null,null,null,"Dec"]
[null,null,null,null,null,null,null,null,null,null,"Annual",{"$f":"AVERAGE(L37:L48)","v":{"$error":"#DIV/0!"}},{"$f":"MAX(M37:M48)","v":0},{"$f":"AVERAGE(N37:N48)","v":{"$error":"#DIV/0!"}},{"$f":"MAX(O37:O48)","v":0}]
[]
[null,null,null,null,null,null,null,null,null,{"$f":"+A5","v":2025},"mg/Nm3","Monthly mean of half-hourly averages","Highest half- hourly average","Monthly mean of  daily averages","Highest daily average"]
[null,null,null,null,null,null,null,null,null,"A4","Jan"]
[null,null,null,null,null,null,null,null,null,null,"Feb"]
[null,null,null,null,null,null,null,null,null,null,"Mar"]
[null,null,null,null,null,null,null,null,null,null,"Apr"]
[null,null,null,null,null,null,null,null,null,null,"May"]
[null,null,null,null,null,null,null,null,null,null,"Jun"]
[null,null,null,null,null,null,null,null,null,null,"Jul"]
[null,null,null,null,null,null,null,null,null,null,"Aug"]
[null,null,null,null,null,null,null,null,null,null,"Sep"]
[null,null,null,null,null,null,null,null,null,null,"Oct"]
[null,null,null,null,null,null,null,null,null,null,"Nov"]
[null,null,null,null,null,null,null,null,null,null,"Dec"]
[null,null,null,null,null,null,null,null,null,null,"Annual",{"$f":"AVERAGE(L52:L63)","v":{"$error":"#DIV/0!"}},{"$f":"MAX(M52:M63)","v":0},{"$f":"AVERAGE(N52:N63)","v":{"$error":"#DIV/0!"}},{"$f":"MAX(O52:O63)","v":0}]
[]
[null,null,null,null,null,null,null,null,null,{"$f":"+A5","v":2025},"mg/Nm3","Monthly mean of half-hourly averages","Highest half- hourly average","Monthly mean of  daily averages","Highest daily average"]
[null,null,null,null,null,null,null,null,null,"A5","Jan"]
[null,null,null,null,null,null,null,null,null,null,"Feb"]
[null,null,null,null,null,null,null,null,null,null,"Mar"]
[null,null,null,null,null,null,null,null,null,null,"Apr"]
[null,null,null,null,null,null,null,null,null,null,"May"]
[null,null,null,null,null,null,null,null,null,null,"Jun"]
[null,null,null,null,null,null,null,null,null,null,"Jul"]
[null,null,null,null,null,null,null,null,null,null,"Aug"]
[null,null,null,null,null,null,null,null,null,null,"Sep"]
[null,null,null,null,null,null,null,null,null,null,"Oct"]
[null,null,null,null,null,null,null,null,null,null,"Nov"]
[null,null,null,null,null,null,null,null,null,null,"Dec"]
[null,null,null,null,null,null,null,null,null,null,"Annual",{"$f":"AVERAGE(L67:L78)","v":{"$error":"#DIV/0!"}},{"$f":"MAX(M67:M78)","v":0},{"$f":"AVERAGE(N67:N78)","v":{"$error":"#DIV/0!"}},{"$f":"MAX(O67:O78)","v":0}]

{"sheet":"Particulates","index":18,"n_rows":79,"n_cols":17,"rows_kept":79,"cut":false,"hidden":false,"merged":[[4,16,8,18],[10,16,12,18],[13,16,16,18],[66,9,78,9],[4,1,4,3],[4,4,4,6],[4,9,4,14],[6,9,18,9],[21,9,33,9],[36,9,48,9],[47,0,47,6],[48,0,51,6],[51,9,63,9],[18,4,18,6]]}
[{"$f":"+'Cover Page'!$B$29","v":"Annual Performance Report 2025"},null,null,null,{"$f":"+'Cover Page'!$B$33","v":"SUEZ R&R Wilton 11 EfW"}]
[]
["Monitoring of Particulate matter emissions",null,null,"Whole Installation",null,null,"See  Notes in Cell Q3",null,null,{"$f":"+A3","v":"Monitoring of Particulate matter emissions"},null,null,null,"Per Combustion Line",null,null,"Notes:"]
[]
[{"$f":"+'Cover Page'!C39","v":2025},"1/2 Hourly Reference Periods",null,null,"Daily Reference Periods",null,null,null,null,null,null,null,null,null,null,null,"User to add logic to complete Whole installation, Table A5:G18. From the data in Per Combustion Line, Table J6:O79, subject to No. of lines installed"]
["mg/Nm3","1/2 hourly PM ELV","Monthly mean of half-hourly averages","Highest half- hourly average","Daily PM ELV","Monthly mean of  daily averages","Highest daily average",null,null,{"$f":"+A5","v":2025},"mg/Nm3","Monthly mean of half-hourly averages","Highest half- hourly average","Monthly mean of  daily averages","Highest daily average"]
["Jan",30,{"$f":"AVERAGE(L7,L22,L37,L52,L67)","v":0.5},{"$f":"MAX(M7,M22,M37,M52,M67)","v":1},5,{"$f":"AVERAGE(N7,N22,N37,N52,N67)","v":0.5},{"$f":"MAX(O7,O22,O37,O52,O67)","v":1},null,null,"A1","Jan",1,1,1,1]
["Feb",30,{"$f":"AVERAGE(L8,L23,L38,L53,L68)","v":0.60000000000000009},{"$f":"MAX(M8,M23,M38,M53,M68)","v":1.3},5,{"$f":"AVERAGE(N8,N23,N38,N53,N68)","v":0.60000000000000009},{"$f":"MAX(O8,O23,O38,O53,O68)","v":0.8},null,null,null,"Feb",0.8,1.3,0.8,0.8]
["Mar",30,0.60000000000000009,3.5,5,0.60000000000000009,0.8,null,null,null,"Mar",0.8,1,0.8,0.8]
["Apr",30,0.60000000000000009,1.5,5,0.60000000000000009,0.8,null,null,null,"Apr",0.8,0.9,0.8,0.8,null,"Whole Installation table A5:G18:"]
["May",30,0.60000000000000009,0.9,5,0.60000000000000009,0.4,null,null,null,"May",0.8,0.9,0.8,0,null,"Mean: for 1/2 hourly and daily periods calculate mean of values across all operational combustion lines for the month"]
["Jun",30,0.55000000000000004,3.3,5,0.55000000000000004,0.8,null,null,null,"Jun",0.7,3.3,0.7,0.8]
["Jul",30,0.5,1,5,0.5,1,null,null,null,"Jul",1,1,1,1]
["Aug",30,0.5,9,5,0.5,1,null,null,null,"Aug",1,1,1,1,null,"Maximum: for 1/2 hourly and daily periods use the highest value across all operational combustion lines for the month"]
["Sep",30,0.6,1,5,0.6,0.9,null,null,null,"Sep",0.7,1,0.7,0.9]
["Oct",30,0.65,1,5,0.65,0.9,null,null,null,"Oct",0.8,1,0.8,0.9]
["Nov",30,0.75,1.2,5,0.75,1,null,null,null,"Nov",0.9,1.2,0.9,1]
["Dec",30,{"$error":"#DIV/0!"},0,5,{"$error":"#DIV/0!"},0,null,null,null,"Dec"]
[null,null,null,null,null,null,null,null,null,null,"Annual",{"$f":"AVERAGE(L7:L18)","v":0.84545454545454557},{"$f":"MAX(M7:M18)","v":3.3},{"$f":"AVERAGE(N7:N18)","v":0.84545454545454557},{"$f":"MAX(O7:O18)","v":1}]
[]
[null,null,null,null,null,null,null,null,null,{"$f":"+A5","v":2025},"mg/Nm3","Monthly mean of half-hourly averages","Highest half- hourly average","Monthly mean of  daily averages","Highest daily average"]
[null,null,null,null,null,null,null,null,null,"A2","Jan",0,1,0,1]
[null,null,null,null,null,null,null,null,null,null,"Feb",0.4,0.8,0.4,0.5]
[null,null,null,null,null,null,null,null,null,null,"Mar",0.4,3.5,0.4,0.4]
[null,null,null,null,null,null,null,null,null,null,"Apr",0.4,1.5,0.4,0.6]
[null,null,null,null,null,null,null,null,null,null,"May",0.4,0.6,0.4,0.4]
[null,null,null,null,null,null,null,null,null,null,"Jun",0.4,0.5,0.4,0.4]
[null,null,null,null,null,null,null,null,null,null,"Jul",0,1,0,0]
[null,null,null,null,null,null,null,null,null,null,"Aug",0,9,0,1]
[null,null,null,null,null,null,null,null,null,null,"Sep",0.5,0.7,0.5,0.6]
[null,null,null,null,null,null,null,null,null,null,"Oct",0.5,0.8,0.5,0.6]
[null,null,null,null,null,null,null,null,null,null,"Nov",0.6,1.1000000000000001,0.6,0.6]
[null,null,null,null,null,null,null,null,null,null,"Dec"]
[null,null,null,null,null,null,null,null,null,null,"Annual",{"$f":"AVERAGE(L22:L33)","v":0.32727272727272727},{"$f":"MAX(M22:M33)","v":9},{"$f":"AVERAGE(N22:N33)","v":0.32727272727272727},{"$f":"MAX(O22:O33)","v":1}]
[]
[null,null,null,null,null,null,null,null,null,{"$f":"+A5","v":2025},"mg/Nm3","Monthly mean of half-hourly averages","Highest half- hourly average","Monthly mean of  daily averages","Highest daily average"]
[null,null,null,null,null,null,null,null,null,"A3","Jan"]
[null,null,null,null,null,null,null,null,null,null,"Feb"]
[null,null,null,null,null,null,null,null,null,null,"Mar"]
[null,null,null,null,null,null,null,null,null,null,"Apr"]
[null,null,null,null,null,null,null,null,null,null,"May"]
[null,null,null,null,null,null,null,null,null,null,"Jun"]
[null,null,null,null,null,null,null,null,null,null,"Jul"]
[null,null,null,null,null,null,null,null,null,null,"Aug"]
[null,null,null,null,null,null,null,null,null,null,"Sep"]
[null,null,null,null,null,null,null,null,null,null,"Oct"]
[null,null,null,null,null,null,null,null,null,null,"Nov"]
["Comments :",null,null,null,null,null,null,null,null,null,"Dec"]
[null,null,null,null,null,null,null,null,null,null,"Annual",{"$f":"AVERAGE(L37:L48)","v":{"$error":"#DIV/0!"}},{"$f":"MAX(M37:M48)","v":0},{"$f":"AVERAGE(N37:N48)","v":{"$error":"#DIV/0!"}},{"$f":"MAX(O37:O48)","v":0}]
[]
[null,null,null,null,null,null,null,null,null,{"$f":"+A5","v":2025},"mg/Nm3","Monthly mean of half-hourly averages","Highest half- hourly average","Monthly mean of  daily averages","Highest daily average"]
[null,null,null,null,null,null,null,null,null,"A4","Jan"]
[null,null,null,null,null,null,null,null,null,null,"Feb"]
[null,null,null,null,null,null,null,null,null,null,"Mar"]
[null,null,null,null,null,null,null,null,null,null,"Apr"]
[null,null,null,null,null,null,null,null,null,null,"May"]
[null,null,null,null,null,null,null,null,null,null,"Jun"]
[null,null,null,null,null,null,null,null,null,null,"Jul"]
[null,null,null,null,null,null,null,null,null,null,"Aug"]
[null,null,null,null,null,null,null,null,null,null,"Sep"]
[null,null,null,null,null,null,null,null,null,null,"Oct"]
[null,null,null,null,null,null,null,null,null,null,"Nov"]
[null,null,null,null,null,null,null,null,null,null,"Dec"]
[null,null,null,null,null,null,null,null,null,null,"Annual",{"$f":"AVERAGE(L52:L63)","v":{"$error":"#DIV/0!"}},{"$f":"MAX(M52:M63)","v":0},{"$f":"AVERAGE(N52:N63)","v":{"$error":"#DIV/0!"}},{"$f":"MAX(O52:O63)","v":0}]
[]
[null,null,null,null,null,null,null,null,null,{"$f":"+A5","v":2025},"mg/Nm3","Monthly mean of half-hourly averages","Highest half- hourly average","Monthly mean of  daily averages","Highest daily average"]
[null,null,null,null,null,null,null,null,null,"A5","Jan"]
[null,null,null,null,null,null,null,null,null,null,"Feb"]
[null,null,null,null,null,null,null,null,null,null,"Mar"]
[null,null,null,null,null,null,null,null,null,null,"Apr"]
[null,null,null,null,null,null,null,null,null,null,"May"]
[null,null,null,null,null,null,null,null,null,null,"Jun"]
[null,null,null,null,null,null,null,null,null,null,"Jul"]
[null,null,null,null,null,null,null,null,null,null,"Aug"]
[null,null,null,null,null,null,null,null,null,null,"Sep"]
[null,null,null,null,null,null,null,null,null,null,"Oct"]
[null,null,null,null,null,null,null,null,null,null,"Nov"]
[null,null,null,null,null,null,null,null,null,null,"Dec"]
[null,null,null,null,null,null,null,null,null,null,"Annual",{"$f":"AVERAGE(L67:L78)","v":{"$error":"#DIV/0!"}},{"$f":"MAX(M67:M78)","v":0},{"$f":"AVERAGE(N67:N78)","v":{"$error":"#DIV/0!"}},{"$f":"MAX(O67:O78)","v":0}]

{"sheet":"CO 0.5 hourly","index":19,"n_rows":82,"n_cols":17,"rows_kept":82,"cut":false,"hidden":false,"merged":[[4,0,5,6],[6,16,10,18],[12,16,14,18],[15,16,18,18],[69,9,81,9],[7,1,7,3],[7,4,7,6],[7,9,7,14],[9,9,21,9],[24,9,36,9],[39,9,51,9],[50,0,50,6],[51,0,54,6],[54,9,66,9]]}
[{"$f":"+'Cover Page'!$B$29","v":"Annual Performance Report 2025"},null,null,null,{"$f":"+'Cover Page'!$B$33","v":"SUEZ R&R Wilton 11 EfW"}]
[]
["Monitoring of Carbon Monoxide (half hourly)",null,null,"Whole Installation",null,null,"See  Notes in Cell Q3",null,null,{"$f":"+A3","v":"Monitoring of Carbon Monoxide (half hourly)"},null,null,null,"Per Combustion Line",null,null,"Notes:"]
[]
["Please complete this tab for your plant if you have 1/2 hourly CO ELVs; otherwise, leave it blank and complete the CO 95% 10 min tab"]
[]
[null,null,null,null,null,null,null,null,null,null,null,null,null,null,null,null,"User to add logic to complete Whole installation, Table A5:G18. From the data in Per Combustion Line, Table J6:O79, subject to No. of lines installed"]
[{"$f":"+'Cover Page'!C39","v":2025},"1/2 Hourly Reference Periods",null,null,"Daily Reference Periods"]
["mg/Nm3","1/2 hourly CO ELV","Monthly mean of half-hourly averages","Highest half- hourly average","Daily CO ELV","Monthly mean of  daily averages","Highest daily average",null,null,{"$f":"+A8","v":2025},"mg/Nm3","Monthly mean of half-hourly averages","Highest half- hourly average","Monthly mean of  daily averages","Highest daily average"]
["Jan",100,null,null,50,null,null,null,null,"A1","Jan"]
["Feb",{"$f":"+B10","v":100},null,null,{"$f":"+E10","v":50},null,null,null,null,null,"Feb"]
["Mar",{"$f":"+B11","v":100},null,null,{"$f":"+E11","v":50},null,null,null,null,null,"Mar",null,null,null,null,null,"Whole Installation table A5:G18:"]
["Apr",100,null,null,50,null,null,null,null,null,"Apr",null,null,null,null,null,"Mean: for 1/2 hourly and daily periods calculate mean of values across all operational combustion lines for the month"]
["May",100,null,null,50,null,null,null,null,null,"May"]
["Jun",100,null,null,50,null,null,null,null,null,"Jun"]
["Jul",100,null,null,50,null,null,null,null,null,"Jul",null,null,null,null,null,"Maximum: for 1/2 hourly and daily periods use the highest value across all operational combustion lines for the month"]
["Aug",100,null,null,50,null,null,null,null,null,"Aug"]
["Sep",100,null,null,50,null,null,null,null,null,"Sep"]
["Oct",100,null,null,50,null,null,null,null,null,"Oct"]
["Nov",100,null,null,50,null,null,null,null,null,"Nov"]
["Dec",100,null,null,50,null,null,null,null,null,"Dec"]
[null,null,null,null,null,null,null,null,null,null,"Annual",{"$f":"AVERAGE(L10:L21)","v":{"$error":"#DIV/0!"}},{"$f":"MAX(M10:M21)","v":0},{"$f":"AVERAGE(N10:N21)","v":{"$error":"#DIV/0!"}},{"$f":"MAX(O10:O21)","v":0}]
[]
[null,null,null,null,null,null,null,null,null,{"$f":"+A8","v":2025},"mg/Nm3","Monthly mean of half-hourly averages","Highest half- hourly average","Monthly mean of  daily averages","Highest daily average"]
[null,null,null,null,null,null,null,null,null,"A2","Jan"]
[null,null,null,null,null,null,null,null,null,null,"Feb"]
[null,null,null,null,null,null,null,null,null,null,"Mar"]
[null,null,null,null,null,null,null,null,null,null,"Apr"]
[null,null,null,null,null,null,null,null,null,null,"May"]
[null,null,null,null,null,null,null,null,null,null,"Jun"]
[null,null,null,null,null,null,null,null,null,null,"Jul"]
[null,null,null,null,null,null,null,null,null,null,"Aug"]
[null,null,null,null,null,null,null,null,null,null,"Sep"]
[null,null,null,null,null,null,null,null,null,null,"Oct"]
[null,null,null,null,null,null,null,null,null,null,"Nov"]
[null,null,null,null,null,null,null,null,null,null,"Dec"]
[null,null,null,null,null,null,null,null,null,null,"Annual",{"$f":"AVERAGE(L25:L36)","v":{"$error":"#DIV/0!"}},{"$f":"MAX(M25:M36)","v":0},{"$f":"AVERAGE(N25:N36)","v":{"$error":"#DIV/0!"}},{"$f":"MAX(O25:O36)","v":0}]
[]
[null,null,null,null,null,null,null,null,null,{"$f":"+A8","v":2025},"mg/Nm3","Monthly mean of half-hourly averages","Highest half- hourly average","Monthly mean of  daily averages","Highest daily average"]
[null,null,null,null,null,null,null,null,null,"A3","Jan"]
[null,null,null,null,null,null,null,null,null,null,"Feb"]
[null,null,null,null,null,null,null,null,null,null,"Mar"]
[null,null,null,null,null,null,null,null,null,null,"Apr"]
[null,null,null,null,null,null,null,null,null,null,"May"]
[null,null,null,null,null,null,null,null,null,null,"Jun"]
[null,null,null,null,null,null,null,null,null,null,"Jul"]
[null,null,null,null,null,null,null,null,null,null,"Aug"]
[null,null,null,null,null,null,null,null,null,null,"Sep"]
[null,null,null,null,null,null,null,null,null,null,"Oct"]
[null,null,null,null,null,null,null,null,null,null,"Nov"]
["Comments :",null,null,null,null,null,null,null,null,null,"Dec"]
[null,null,null,null,null,null,null,null,null,null,"Annual",{"$f":"AVERAGE(L40:L51)","v":{"$error":"#DIV/0!"}},{"$f":"MAX(M40:M51)","v":0},{"$f":"AVERAGE(N40:N51)","v":{"$error":"#DIV/0!"}},{"$f":"MAX(O40:O51)","v":0}]
[]
[null,null,null,null,null,null,null,null,null,{"$f":"+A8","v":2025},"mg/Nm3","Monthly mean of half-hourly averages","Highest half- hourly average","Monthly mean of  daily averages","Highest daily average"]
[null,null,null,null,null,null,null,null,null,"A4","Jan"]
[null,null,null,null,null,null,null,null,null,null,"Feb"]
[null,null,null,null,null,null,null,null,null,null,"Mar"]
[null,null,null,null,null,null,null,null,null,null,"Apr"]
[null,null,null,null,null,null,null,null,null,null,"May"]
[null,null,null,null,null,null,null,null,null,null,"Jun"]
[null,null,null,null,null,null,null,null,null,null,"Jul"]
[null,null,null,null,null,null,null,null,null,null,"Aug"]
[null,null,null,null,null,null,null,null,null,null,"Sep"]
[null,null,null,null,null,null,null,null,null,null,"Oct"]
[null,null,null,null,null,null,null,null,null,null,"Nov"]
[null,null,null,null,null,null,null,null,null,null,"Dec"]
[null,null,null,null,null,null,null,null,null,null,"Annual",{"$f":"AVERAGE(L55:L66)","v":{"$error":"#DIV/0!"}},{"$f":"MAX(M55:M66)","v":0},{"$f":"AVERAGE(N55:N66)","v":{"$error":"#DIV/0!"}},{"$f":"MAX(O55:O66)","v":0}]
[]
[null,null,null,null,null,null,null,null,null,{"$f":"+A8","v":2025},"mg/Nm3","Monthly mean of half-hourly averages","Highest half- hourly average","Monthly mean of  daily averages","Highest daily average"]
[null,null,null,null,null,null,null,null,null,"A5","Jan"]
[null,null,null,null,null,null,null,null,null,null,"Feb"]
[null,null,null,null,null,null,null,null,null,null,"Mar"]
[null,null,null,null,null,null,null,null,null,null,"Apr"]
[null,null,null,null,null,null,null,null,null,null,"May"]
[null,null,null,null,null,null,null,null,null,null,"Jun"]
[null,null,null,null,null,null,null,null,null,null,"Jul"]
[null,null,null,null,null,null,null,null,null,null,"Aug"]
[null,null,null,null,null,null,null,null,null,null,"Sep"]
[null,null,null,null,null,null,null,null,null,null,"Oct"]
[null,null,null,null,null,null,null,null,null,null,"Nov"]
[null,null,null,null,null,null,null,null,null,null,"Dec"]
[null,null,null,null,null,null,null,null,null,null,"Annual",{"$f":"AVERAGE(L70:L81)","v":{"$error":"#DIV/0!"}},{"$f":"MAX(M70:M81)","v":0},{"$f":"AVERAGE(N70:N81)","v":{"$error":"#DIV/0!"}},{"$f":"MAX(O70:O81)","v":0}]

{"sheet":"CO 95% 10 min","index":20,"n_rows":82,"n_cols":19,"rows_kept":82,"cut":false,"hidden":false,"merged":[[4,0,5,7],[6,18,10,20],[12,18,14,20],[15,18,18,20],[69,10,81,10],[7,1,7,4],[7,5,7,7],[7,10,7,16],[9,10,21,10],[24,10,36,10],[39,10,51,10],[50,0,50,7],[51,0,54,7],[54,10,66,10]]}
[{"$f":"+'Cover Page'!$B$29","v":"Annual Performance Report 2025"},null,null,null,{"$f":"+'Cover Page'!$B$33","v":"SUEZ R&R Wilton 11 EfW"}]
[]
["Monitoring of Carbon Monoxide (10-minute avg)",null,null,null,"Whole Installation",null,null,"See  Notes in Cell S3",null,{"$f":"+A3","v":"Monitoring of Carbon Monoxide (10-minute avg)"},null,null,null,null,"Per Combustion Line",null,"Notes:",null,"Notes:"]
[]
["Please complete this tab for your plant if you have 10-minute average CO ELVs; otherwise, leave it blank and complete the CO 0.5 hourly tab"]
[]
[null,null,null,null,null,null,null,null,null,null,null,null,null,null,null,null,null,null,"User to add logic to complete Whole installation, Table A5:H18. From the data in Per Combustion Line, Table K6:Q79, subject to No. of lines installed"]
[{"$f":"+'Cover Page'!C39","v":2025},"10-minute Reference Periods",null,null,null,"Daily Reference Periods"]
["mg/Nm3","95%ile 10-min avg CO ELV","Highest daily 95%ile 10-min average","Monthly mean of 10-min averages","Highest 10-min average","Daily CO ELV","Monthly mean of  daily averages","Highest daily average",null,null,{"$f":"+A8","v":2025},"mg/Nm3","Highest daily 95%ile 10-min average","Monthly mean of 10-min averages","Highest 10-min average","Monthly mean of  daily averages","Highest daily average"]
["Jan",150,{"$f":"AVERAGE(M10,M25,M40,M55,M70)","v":15.5},{"$f":"AVERAGE(N10,N25,N40,N55,N70)","v":7},{"$f":"MAX(O10,O25,O40,O55,O70)","v":426},50,{"$f":"AVERAGE(P10,P25,P40,P55,P70)","v":7},{"$f":"AVERAGE(Q10,Q25,Q40,Q55,Q70)","v":12.5},null,null,"A1","Jan",21,9,426,9,14]
["Feb",{"$f":"+B10","v":150},{"$f":"AVERAGE(M11,M26,M41,M56,M71)","v":27.5},6,{"$f":"MAX(O11,O26,O41,O56,O71)","v":810},{"$f":"+F10","v":50},{"$f":"AVERAGE(P11,P26,P41,P56,P71)","v":6},11.5,null,null,null,"Feb",11,7,339,7,11]
["Mar",{"$f":"+B11","v":150},{"$f":"AVERAGE(M12,M27,M42,M57,M72)","v":27},7,731,{"$f":"+F11","v":50},{"$f":"AVERAGE(P12,P27,P42,P57,P72)","v":7},11,null,null,null,"Mar",16,9,148,9,11,null,"Whole Installation table A5:H18:"]
["Apr",150,{"$f":"AVERAGE(M13,M28,M43,M58,M73)","v":30},7,699,50,{"$f":"AVERAGE(P13,P28,P43,P58,P73)","v":7},13,null,null,null,"Apr",45,9,232,9,13,null,"Mean: for 10-min and daily periods use average of all operational combustion lines."]
["May",150,{"$f":"AVERAGE(M14,M29,M44,M59,M74)","v":9.5},5.5,216,50,{"$f":"AVERAGE(P14,P29,P44,P59,P74)","v":5.5},3,null,null,null,"May",6,6,6,6,0]
["Jun",150,{"$f":"AVERAGE(M15,M30,M45,M60,M75)","v":19.5},5.5,182,50,{"$f":"AVERAGE(P15,P30,P45,P60,P75)","v":5.5},7.5,null,null,null,"Jun",29,6,182,6,9]
["Jul",150,{"$f":"AVERAGE(M16,M31,M46,M61,M76)","v":9.5},4.5,166,50,{"$f":"AVERAGE(P16,P31,P46,P61,P76)","v":4.5},7,null,null,null,"Jul",14,5,163,5,9,null,"Maximum: for 10-min and daily periods use the highest of all operational combustion lines in any month."]
["Aug",150,{"$f":"AVERAGE(M17,M32,M47,M62,M77)","v":13},5,170,50,{"$f":"AVERAGE(P17,P32,P47,P62,P77)","v":5},8,null,null,null,"Aug",18,6,168,6,10]
["Sep",150,{"$f":"AVERAGE(M18,M33,M48,M63,M78)","v":11},4,171,50,{"$f":"AVERAGE(P18,P33,P48,P63,P78)","v":4},6,null,null,null,"Sep",16,5,140,5,7]
["Oct",150,{"$f":"AVERAGE(M19,M34,M49,M64,M79)","v":7.5},3.5,532,50,{"$f":"AVERAGE(P19,P34,P49,P64,P79)","v":3.5},6.5,null,null,null,"Oct",7,4,123,4,5]
["Nov",150,{"$f":"AVERAGE(M20,M35,M50,M65,M80)","v":10},4.5,131,50,{"$f":"AVERAGE(P20,P35,P50,P65,P80)","v":4.5},6.5,null,null,null,"Nov",11,5,122,5,7]
["Dec",150,{"$f":"AVERAGE(M21,M36,M51,M66,M81)","v":{"$error":"#DIV/0!"}},{"$error":"#DIV/0!"},0,50,{"$f":"AVERAGE(P21,P36,P51,P66,P81)","v":{"$error":"#DIV/0!"}},{"$error":"#DIV/0!"},null,null,null,"Dec"]
[null,null,null,null,null,null,null,null,null,null,null,"Annual",{"$f":"AVERAGE(M10:M21)","v":17.636363636363637},null,{"$f":"MAX(O10:O21)","v":426},{"$f":"AVERAGE(P10:P21)","v":6.4545454545454541},{"$f":"MAX(Q10:Q21)","v":14}]
[]
[null,null,null,null,null,null,null,null,null,null,{"$f":"+A8","v":2025},"mg/Nm3","Highest daily 95%ile 10-min average","Monthly mean of 10-min averages","Highest 10-min average","Monthly mean of  daily averages","Highest daily average"]
[null,null,null,null,null,null,null,null,null,null,"A2","Jan",10,5,273,5,11]
[null,null,null,null,null,null,null,null,null,null,null,"Feb",44,5,810,5,12]
[null,null,null,null,null,null,null,null,null,null,null,"Mar",38,5,731,5,11]
[null,null,null,null,null,null,null,null,null,null,null,"Apr",15,5,699,5,13]
[null,null,null,null,null,null,null,null,null,null,null,"May",13,5,216,5,6]
[null,null,null,null,null,null,null,null,null,null,null,"Jun",10,5,180,5,6]
[null,null,null,null,null,null,null,null,null,null,null,"Jul",5,4,166,4,5]
[null,null,null,null,null,null,null,null,null,null,null,"Aug",8,4,170,4,6]
[null,null,null,null,null,null,null,null,null,null,null,"Sep",6,3,171,3,5]
[null,null,null,null,null,null,null,null,null,null,null,"Oct",8,3,532,3,8]
[null,null,null,null,null,null,null,null,null,null,null,"Nov",9,4,131,4,6]
[null,null,null,null,null,null,null,null,null,null,null,"Dec"]
[null,null,null,null,null,null,null,null,null,null,null,"Annual",{"$f":"AVERAGE(M25:M36)","v":15.090909090909092},null,{"$f":"MAX(O25:O36)","v":810},{"$f":"AVERAGE(P25:P36)","v":4.3636363636363633},{"$f":"MAX(Q25:Q36)","v":13}]
[]
[null,null,null,null,null,null,null,null,null,null,{"$f":"+A8","v":2025},"mg/Nm3","Highest daily 95%ile 10-min average","Monthly mean of 10-min averages","Highest 10-min average","Monthly mean of  daily averages","Highest daily average"]
[null,null,null,null,null,null,null,null,null,null,"A3","Jan"]
[null,null,null,null,null,null,null,null,null,null,null,"Feb"]
[null,null,null,null,null,null,null,null,null,null,null,"Mar"]
[null,null,null,null,null,null,null,null,null,null,null,"Apr"]
[null,null,null,null,null,null,null,null,null,null,null,"May"]
[null,null,null,null,null,null,null,null,null,null,null,"Jun"]
[null,null,null,null,null,null,null,null,null,null,null,"Jul"]
[null,null,null,null,null,null,null,null,null,null,null,"Aug"]
[null,null,null,null,null,null,null,null,null,null,null,"Sep"]
[null,null,null,null,null,null,null,null,null,null,null,"Oct"]
[null,null,null,null,null,null,null,null,null,null,null,"Nov"]
["Comments :",null,null,null,null,null,null,null,null,null,null,"Dec"]
["Environment Agency explanatory note: The 10-minute average ELV is based on the “95th percentile”. In this case this means that 95% of the 10 minute averages in the relevant 24-hour period (i.e. 137) must be below 150 mg/Nm3, and 5% (i.e. 7) are allowed to be any value above 150 mg/Nm3. Whilst we expect operators to minimise CO emissions at all times, it is perfectly acceptable for the value of the maximum 10-minute average to be above 150 mg/Nm3, provided the 95th percentile ELV has been met for that period. ",null,null,null,null,null,null,null,null,null,null,"Annual",{"$f":"AVERAGE(M40:M51)","v":{"$error":"#DIV/0!"}},null,{"$f":"MAX(O40:O51)","v":0},{"$f":"AVERAGE(P40:P51)","v":{"$error":"#DIV/0!"}},{"$f":"MAX(Q40:Q51)","v":0}]
[]
[null,null,null,null,null,null,null,null,null,null,{"$f":"+A8","v":2025},"mg/Nm3","Highest daily 95%ile 10-min average","Monthly mean of 10-min averages","Highest 10-min average","Monthly mean of  daily averages","Highest daily average"]
[null,null,null,null,null,null,null,null,null,null,"A4","Jan"]
[null,null,null,null,null,null,null,null,null,null,null,"Feb"]
[null,null,null,null,null,null,null,null,null,null,null,"Mar"]
[null,null,null,null,null,null,null,null,null,null,null,"Apr"]
[null,null,null,null,null,null,null,null,null,null,null,"May"]
[null,null,null,null,null,null,null,null,null,null,null,"Jun"]
[null,null,null,null,null,null,null,null,null,null,null,"Jul"]
[null,null,null,null,null,null,null,null,null,null,null,"Aug"]
[null,null,null,null,null,null,null,null,null,null,null,"Sep"]
[null,null,null,null,null,null,null,null,null,null,null,"Oct"]
[null,null,null,null,null,null,null,null,null,null,null,"Nov"]
[null,null,null,null,null,null,null,null,null,null,null,"Dec"]
[null,null,null,null,null,null,null,null,null,null,null,"Annual",{"$f":"AVERAGE(M55:M66)","v":{"$error":"#DIV/0!"}},null,{"$f":"MAX(O55:O66)","v":0},{"$f":"AVERAGE(P55:P66)","v":{"$error":"#DIV/0!"}},{"$f":"MAX(Q55:Q66)","v":0}]
[]
[null,null,null,null,null,null,null,null,null,null,{"$f":"+A8","v":2025},"mg/Nm3","95%ile 10-min avg maximum","Monthly CO 10-min avg mean","10-min avg maximum","Monthly daily mean","Monthly daily maximum"]
[null,null,null,null,null,null,null,null,null,null,"A5","Jan"]
[null,null,null,null,null,null,null,null,null,null,null,"Feb"]
[null,null,null,null,null,null,null,null,null,null,null,"Mar"]
[null,null,null,null,null,null,null,null,null,null,null,"Apr"]
[null,null,null,null,null,null,null,null,null,null,null,"May"]
[null,null,null,null,null,null,null,null,null,null,null,"Jun"]
[null,null,null,null,null,null,null,null,null,null,null,"Jul"]
[null,null,null,null,null,null,null,null,null,null,null,"Aug"]
[null,null,null,null,null,null,null,null,null,null,null,"Sep"]
[null,null,null,null,null,null,null,null,null,null,null,"Oct"]
[null,null,null,null,null,null,null,null,null,null,null,"Nov"]
[null,null,null,null,null,null,null,null,null,null,null,"Dec"]
[null,null,null,null,null,null,null,null,null,null,null,"Annual",{"$f":"AVERAGE(M70:M81)","v":{"$error":"#DIV/0!"}},null,{"$f":"MAX(O70:O81)","v":0},{"$f":"AVERAGE(P70:P81)","v":{"$error":"#DIV/0!"}},{"$f":"MAX(Q70:Q81)","v":0}]

{"sheet":"NH3","index":21,"n_rows":79,"n_cols":17,"rows_kept":79,"cut":false,"hidden":false,"merged":[[3,16,7,18],[9,16,11,18],[12,16,15,18],[66,9,78,9],[4,1,4,3],[4,4,4,6],[4,9,4,14],[6,9,18,9],[21,9,33,9],[36,9,48,9],[47,0,47,6],[48,0,51,6],[51,9,63,9],[18,4,18,6]]}
[{"$f":"+'Cover Page'!$B$29","v":"Annual Performance Report 2025"},null,null,null,{"$f":"+'Cover Page'!$B$33","v":"SUEZ R&R Wilton 11 EfW"}]
[]
["Monitoring of Ammnonia emissions ",null,null,"Whole Installation",null,null,"See  Notes in Cell Q3",null,null,{"$f":"+A3","v":"Monitoring of Ammnonia emissions "},null,null,null,"Per Combustion Line",null,null,"Notes:"]
[null,null,null,null,null,null,null,null,null,null,null,null,null,null,null,null,"User to add logic to complete Whole installation, Table A5:G18. From the data in Per Combustion Line, Table J6:O79, subject to No. of lines installed"]
[{"$f":"+'Cover Page'!C39","v":2025},"1/2 Hourly Reference Periods",null,null,"Daily Reference Periods"]
["mg/Nm3","1/2 hourly NH3 ELV","Monthly mean of half-hourly averages","Highest half- hourly average","Daily NH3 ELV","Monthly mean of  daily averages","Highest daily average",null,null,{"$f":"+A5","v":2025},"mg/Nm3","Monthly mean of half-hourly averages","Highest half- hourly average","Monthly mean of  daily averages","Highest daily average"]
["Jan","None",{"$f":"AVERAGE(L7,L22,L37,L52,L67)","v":1.5},{"$f":"MAX(M7,M22,M37,M52,M67)","v":11},15,{"$f":"AVERAGE(N7,N22,N37,N52,N67)","v":1.5},{"$f":"MAX(O7,O22,O37,O52,O67)","v":3},null,null,"A1","Jan",2,11,2,3]
["Feb",{"$f":"+B7","v":"None"},{"$f":"AVERAGE(L8,L23,L38,L53,L68)","v":1.5},{"$f":"MAX(M8,M23,M38,M53,M68)","v":12},15,{"$f":"AVERAGE(N8,N23,N38,N53,N68)","v":1.5},{"$f":"MAX(O8,O23,O38,O53,O68)","v":3},null,null,null,"Feb",2,8,2,3]
["Mar",{"$f":"+B8","v":"None"},1,9,15,1,2,null,null,null,"Mar",1,5,1,2,null,"Whole Installation table A5:G18:"]
["Apr","None",1,7,15,1,2,null,null,null,"Apr",1,7,1,2,null,"Mean: for 1/2 hourly and daily periods calculate mean of values across all operational combustion lines for the month"]
["May","None",1.5,6,15,1.5,2,null,null,null,"May",2,3,2,0]
["Jun","None",3,14,15,3,5,null,null,null,"Jun",3,14,3,3]
["Jul","None",2,14,15,2,4,null,null,null,"Jul",2,6,2,3,null,"Maximum: for 1/2 hourly and daily periods use the highest value across all operational combustion lines for the month"]
["Aug","None",1.5,7,15,1.5,3,null,null,null,"Aug",2,7,2,3]
["Sep","None",1.5,10,15,1.5,2,null,null,null,"Sep",1,6,1,2]
["Oct","None",2,7,15,2,3,null,null,null,"Oct",2,5,2,3]
["Nov","None",2.5,7,15,2.5,4,null,null,null,"Nov",3,7,3,4]
["Dec","None",{"$error":"#DIV/0!"},0,15,{"$error":"#DIV/0!"},0,null,null,null,"Dec"]
[null,null,null,null,null,null,null,null,null,null,"Annual",{"$f":"AVERAGE(L7:L18)","v":1.9090909090909092},{"$f":"MAX(M7:M18)","v":14},{"$f":"AVERAGE(N7:N18)","v":1.9090909090909092},{"$f":"MAX(O7:O18)","v":4}]
[]
[null,null,null,null,null,null,null,null,null,{"$f":"+A5","v":2025},"mg/Nm3","Monthly mean of half-hourly averages","Highest half- hourly average","Monthly mean of  daily averages","Highest daily average"]
[null,null,null,null,null,null,null,null,null,"A2","Jan",1,8,1,2]
[null,null,null,null,null,null,null,null,null,null,"Feb",1,12,1,1]
[null,null,null,null,null,null,null,null,null,null,"Mar",1,9,1,2]
[null,null,null,null,null,null,null,null,null,null,"Apr",1,7,1,2]
[null,null,null,null,null,null,null,null,null,null,"May",1,6,1,2]
[null,null,null,null,null,null,null,null,null,null,"Jun",3,9,3,5]
[null,null,null,null,null,null,null,null,null,null,"Jul",2,14,2,4]
[null,null,null,null,null,null,null,null,null,null,"Aug",1,7,1,2]
[null,null,null,null,null,null,null,null,null,null,"Sep",2,10,2,2]
[null,null,null,null,null,null,null,null,null,null,"Oct",2,7,2,2]
[null,null,null,null,null,null,null,null,null,null,"Nov",2,6,2,4]
[null,null,null,null,null,null,null,null,null,null,"Dec"]
[null,null,null,null,null,null,null,null,null,null,"Annual",{"$f":"AVERAGE(L22:L33)","v":1.5454545454545454},{"$f":"MAX(M22:M33)","v":14},{"$f":"AVERAGE(N22:N33)","v":1.5454545454545454},{"$f":"MAX(O22:O33)","v":5}]
[]
[null,null,null,null,null,null,null,null,null,{"$f":"+A5","v":2025},"mg/Nm3","Monthly mean of half-hourly averages","Highest half- hourly average","Monthly mean of  daily averages","Highest daily average"]
[null,null,null,null,null,null,null,null,null,"A3","Jan"]
[null,null,null,null,null,null,null,null,null,null,"Feb"]
[null,null,null,null,null,null,null,null,null,null,"Mar"]
[null,null,null,null,null,null,null,null,null,null,"Apr"]
[null,null,null,null,null,null,null,null,null,null,"May"]
[null,null,null,null,null,null,null,null,null,null,"Jun"]
[null,null,null,null,null,null,null,null,null,null,"Jul"]
[null,null,null,null,null,null,null,null,null,null,"Aug"]
[null,null,null,null,null,null,null,null,null,null,"Sep"]
[null,null,null,null,null,null,null,null,null,null,"Oct"]
[null,null,null,null,null,null,null,null,null,null,"Nov"]
["Comments :",null,null,null,null,null,null,null,null,null,"Dec"]
["An indicated ELV value of zero in the table above means that no ammonia limit is/was set in the permit.  ",null,null,null,null,null,null,null,null,null,"Annual",{"$f":"AVERAGE(L37:L48)","v":{"$error":"#DIV/0!"}},{"$f":"MAX(M37:M48)","v":0},{"$f":"AVERAGE(N37:N48)","v":{"$error":"#DIV/0!"}},{"$f":"MAX(O37:O48)","v":0}]
[]
[null,null,null,null,null,null,null,null,null,{"$f":"+A5","v":2025},"mg/Nm3","Monthly mean of half-hourly averages","Highest half- hourly average","Monthly mean of  daily averages","Highest daily average"]
[null,null,null,null,null,null,null,null,null,"A4","Jan"]
[null,null,null,null,null,null,null,null,null,null,"Feb"]
[null,null,null,null,null,null,null,null,null,null,"Mar"]
[null,null,null,null,null,null,null,null,null,null,"Apr"]
[null,null,null,null,null,null,null,null,null,null,"May"]
[null,null,null,null,null,null,null,null,null,null,"Jun"]
[null,null,null,null,null,null,null,null,null,null,"Jul"]
[null,null,null,null,null,null,null,null,null,null,"Aug"]
[null,null,null,null,null,null,null,null,null,null,"Sep"]
[null,null,null,null,null,null,null,null,null,null,"Oct"]
[null,null,null,null,null,null,null,null,null,null,"Nov"]
[null,null,null,null,null,null,null,null,null,null,"Dec"]
[null,null,null,null,null,null,null,null,null,null,"Annual",{"$f":"AVERAGE(L52:L63)","v":{"$error":"#DIV/0!"}},{"$f":"MAX(M52:M63)","v":0},{"$f":"AVERAGE(N52:N63)","v":{"$error":"#DIV/0!"}},{"$f":"MAX(O52:O63)","v":0}]
[]
[null,null,null,null,null,null,null,null,null,{"$f":"+A5","v":2025},"mg/Nm3","Monthly mean of half-hourly averages","Highest half- hourly average","Monthly mean of  daily averages","Highest daily average"]
[null,null,null,null,null,null,null,null,null,"A5","Jan"]
[null,null,null,null,null,null,null,null,null,null,"Feb"]
[null,null,null,null,null,null,null,null,null,null,"Mar"]
[null,null,null,null,null,null,null,null,null,null,"Apr"]
[null,null,null,null,null,null,null,null,null,null,"May"]
[null,null,null,null,null,null,null,null,null,null,"Jun"]
[null,null,null,null,null,null,null,null,null,null,"Jul"]
[null,null,null,null,null,null,null,null,null,null,"Aug"]
[null,null,null,null,null,null,null,null,null,null,"Sep"]
[null,null,null,null,null,null,null,null,null,null,"Oct"]
[null,null,null,null,null,null,null,null,null,null,"Nov"]
[null,null,null,null,null,null,null,null,null,null,"Dec"]
[null,null,null,null,null,null,null,null,null,null,"Annual",{"$f":"AVERAGE(L67:L78)","v":{"$error":"#DIV/0!"}},{"$f":"MAX(M67:M78)","v":0},{"$f":"AVERAGE(N67:N78)","v":{"$error":"#DIV/0!"}},{"$f":"MAX(O67:O78)","v":0}]

{"sheet":"Template changes log","index":22,"n_rows":23,"n_cols":3,"rows_kept":23,"cut":false,"hidden":false,"merged":[]}
["Log of changes to template (Environment Agency use only)"]
[]
["Date","Description of change","New version number and date"]
["2024-01-16","Air (periodic) tab: corrected default O2 reference from 6 to 11% ","Version 23.5a (for incinerators) - 16/01/2024"]
["2024-09-23","Air (periodic) tab: corrected symbol for Thallium to Tl"]
["2024-09-23","Air (periodic) tab: removed last year's references to different emission limit values applying from 03/12/23 and updated all relevant ELVs"]
["2024-09-23","Tabs for continuously monitored pollutants (HCl, SO2 etc.): changed terminology in table headings to improve clarity"]
["2024-09-23","Tabs for continuously monitored pollutants (HCl, SO2 etc.): removed last year's references to different emission limit values applying from 03/12/23 and updated all relevant ELVs"]
["2024-09-23","Perf 1 tab: updated formula for water usage to report m3 rather than litres and corrected error with formula copying operator name"]
["2024-09-23","Operational Summary tab: table added on start-ups and shut-downs"]
["2024-09-23","Operational Summary tab: table added on dioxins and mercury protocols"]
["2024-09-23","Operational Summary tab: table added on AST, QAL 2 and calibration functions"]
["2024-09-23","CO2 N2O tab: various changes made to notes to reflect the fact that most plants should now have calibrated CEMS and flow meters + some have C14 samplers and more up to date industry data","Version 24a (for incinerators) - 23/09/24"]
["2024-11-08","CO2 N2O tab: Changed the N2O CO2 equivalence factor from 298 to 265 in line with recently updated government greenhouse gas figures: https://www.gov.uk/government/publications/greenhouse-gas-reporting-conversion-factors-2024"]
["2024-11-08","CO2 N2O tab: Added an additional requirement for municipal EfW plants to state the yearly average biogenic percentage of the waste by mass, and reference to a document which sets out a methodology for calculating NCV of waste from the results of C14 sampling."]
["2024-11-08","Permit Compliance tab: Two additional columns added + explanatory notes to the table entitled \"Summary of non-compliances under the permit\" to allow CCS scores to be stated where relevant. "]
["2024-11-08","Residue Quality tab: Note added explaining application of TOC and LOI limits and asking operators to report both metrics where measured. ","Version 24.1a (for incinerators) - 08/11/24"]
["2024-11-27","Operational Summary tab: table added on start-ups and shut-downs","Version 24.2a (for incinerators) - 27/11/24"]
["2025-11-27","Cover Page: Print as PDF and Print Report and pdf buttons deleted and blank columns removed; contents page deleted","Version 25.1a (for incinerators) - 27/11/25"]
["2025-11-27","Residue Quality tab renamed to \"Residues\", and Summary of residue handling table moved from Operational Summary tab to Residues tab."]
["2025-11-27","Various changes made to the Operational Data tab including\n•\tReformatting of the rows under the Operational data heading (Rows 3-8) to make it clearer what information is required. \n•\tAmendment of the rows under the Energy Usage / Export heading (Rows 26-32) to calculate an “indicative parasitic load” (now excluding energy imported)\n•\tAmendment of the unit for gas usage from cubic feet to cubic metres (Row 50) \n•\tSome amendments to the first 2 notes and other minor edits\n•\tDeleted \"Overall Availability, mean avg. of all lines, hrs\" row"]
["2025-11-27","Operational Summary tab: Note added requiring all emergency shut-downs be listed, irrespective of whether or not they were reportable. "]
["2025-11-27","CO2 N2O tab: Note added to ask operators to ensure that relevant data reported here matches that which will be submitted under the Pollution Inventory"]